{"text_format":"1","workbook":"xlsx","n_sheets":21,"sheets":["Cover Page","Contents","Facility Info","Operational Data","Operational Summary","Perf. Form 1","Energy Form 1","Permit Compliance","Improvements","Public Liasion","Residue Quality ","Water","Air (periodic)","Air (CEMS)","HCl","SO2","NOx","TOC","Particulates","CO 95% 10 min","NH3"],"not_rendered":{"charts":7,"images":3,"macros":1,"external_links":0,"defined_names":21,"comments":0,"pivot_tables":0},"unopened":[],"bounds":{"document_bytes":16777216,"sheet_cells":100000,"rows_first":2000,"rows_last":500,"rows_between":2000,"halvings":0,"cell_chars":16384,"cell_head_chars":4096},"cells_cut":0,"cells_raw":0,"read":"whole","date_system":"1900"}

{"sheet":"Cover Page","index":0,"n_rows":53,"n_cols":14,"rows_kept":53,"cut":false,"hidden":false,"merged":[[13,13,18,15],[34,1,34,8],[0,3,5,6],[7,1,23,8],[28,1,28,8],[30,1,30,8],[32,1,32,8],[48,2,48,3],[48,6,48,8],[52,2,52,3],[36,1,36,8],[40,2,40,8],[42,2,42,4],[44,2,44,4],[46,2,46,3],[46,6,46,8]]}
[]
[null,null,null,null,null,null,null,null,null,null,null,null,null,"Version 20.6 "]
[]
[]
[]
[]
[]
[null,"Add photo"]
[]
[]
[]
[]
[null,null,null,null,null,null,null,null,null,null,null,null,null,"Notes:"]
[null,null,null,null,null,null,null,null,null,null,null,null,null,"This template may require adjustments by individual operators to meet specific reporting requirements as defined in the site Permit(s)"]
[]
[]
[]
[]
[]
[]
[]
[]
[]
[]
[]
[]
[]
[]
[null,"Annual Performance Report 2020"]
[]
[null,"Permit EPR/FP3739FS"]
[]
[null,"Lincolnshire Energy from Waste Facility"]
[]
[]
[]
[null,"FCC Environment (Lincolnshire) Limited"]
[]
[null,"Year:",2020]
[]
[null,"Address:","Paving Way, Off Whisby Road, North Hykeham, Lincoln, LN63QW"]
[]
[null,"Tel: ","01522 814315"]
[]
[null,"Email: "]
[]
[null,"Prepared by:","Michael Day",null,null,"Position:","Environment Manager"]
[]
[null,"Approved by:","Juergen Schaper",null,null,"Position:","General Manager"]
[]
[null,"Version:",1]
[]
[null,"Issue Date:","2021-01-25"]

{"sheet":"Contents","index":1,"n_rows":43,"n_cols":11,"rows_kept":43,"cut":false,"hidden":false,"merged":[[4,10,7,14],[8,1,8,6],[3,1,3,6],[4,1,4,6],[5,1,5,6],[6,1,6,6],[7,1,7,6],[20,1,20,6],[9,1,9,6],[10,1,10,6],[11,1,11,6],[12,1,12,6],[13,1,13,6],[14,1,14,6],[15,1,15,6],[16,1,16,6],[17,1,17,6],[18,1,18,6],[19,1,19,6],[34,1,34,6],[21,1,21,6],[22,1,22,6],[25,1,25,6],[26,1,26,6],[27,1,27,6],[28,1,28,6],[29,1,29,6],[30,1,30,6],[33,1,33,6],[42,0,45,9],[35,1,35,6],[36,1,36,6],[37,1,37,6],[38,1,38,6],[39,1,39,6],[40,1,40,6]]}
[{"$f":"+'Cover Page'!$B$29","v":"Annual Performance Report 2020"},null,null,null,{"$f":"+'Cover Page'!$B$33","v":"Lincolnshire Energy from Waste Facility"}]
[]
["Contents",null,null,null,null,null,null,null,null,null,"Notes:"]
["Section","Subject",null,null,null,null,null,"Page ",null,null,"Section references and Page nos. to be inserted"]
[null,"Facility Information",null,null,null,null,null,3,null,null,"Sections and Subjects may require adjustment by individual operators to meet specific reporting requirements as defined in the sites Permit(s)"]
[null,"Operational Data",null,null,null,null,null,4]
[null,"Operational Summary",null,null,null,null,null,5]
[null,"Performance Form 1",null,null,null,null,null,6]
[null,"Energy Form 1",null,null,null,null,null,7]
[null,"Permit Compliance",null,null,null,null,null,8]
[null,"Improvements",null,null,null,null,null,9]
[null,"Public Liaison",null,null,null,null,null,10]
[null,"Residue Quality",null,null,null,null,null,11]
[null,"Emissions to Water",null,null,null,null,null,12]
[null,"Emissions to Air (periodically monitored)",null,null,null,null,null,13]
[null,"Emissions to Air (continuously monitored)",null,null,null,null,null,14]
[null,"Hydrogen Chloride emissions",null,null,null,null,null,15]
[null,"Sulphur Dioxide emissions",null,null,null,null,null,16]
[null,"Oxides of Nitrogen emissions",null,null,null,null,null,17]
[null,"Total Organic Carbon emissions",null,null,null,null,null,18]
[null,"Particulate Matter emissions",null,null,null,null,null,19]
[null,"Carbon Monoxide emissions",null,null,null,null,null,20]
[null,"Ammonia emissions",null,null,null,null,null,21]
[]
["Version Control"]
["Section","Information",null,null,null,null,null,"Date"]
[]
[]
[]
[]
[]
[]
["Distribution"]
["Copy","Name, Role",null,null,null,null,null,"No."]
[]
[]
[]
[]
[]
[]
[]
[]
["This report is required under the Industrial Emissions Directive’s Article 55(2) requirements on reporting and public information on waste incineration plants and co-incineration plants, which require the operator to produce an annual report on the functioning and monitoring of the plant and make it available to the public. "]

{"sheet":"Facility Info","index":2,"n_rows":14,"n_cols":11,"rows_kept":14,"cut":false,"hidden":false,"merged":[[4,0,9,8],[13,0,45,8],[4,10,9,13],[13,10,22,13]]}
[{"$f":"+'Cover Page'!$B$29","v":"Annual Performance Report 2020"},null,null,null,{"$f":"+'Cover Page'!$B$33","v":"Lincolnshire Energy from Waste Facility"}]
[]
["Plant Description and Design",null,null,null,null,null,null,null,null,null,"Notes:"]
[]
["The EFW facility has a total capacity of approximately 49.7 MW (thermal input) and is capable of generating up to 13.1 MWe of electrical power, the majority of which is exported to the National Grid. Provision has been made to supply additional heat in the form of up to 10 MWth when a commercial scheme becomes available to take the heat.\n\nThe facility consists of one incinerator line with a total annual permitted capacity of 190,000 tonnes per year.\n",null,null,null,null,null,null,null,null,null,"Include summary of plant design, design capacity, no. of combustion lines, electrical and heat capacity and any other general information that describes the facility, its location and purpose "]
[]
[]
[]
[]
[]
[]
["Summary of Operational Processes and Procedures"]
[]
["Waste material burned at the facility is residual municipal solid waste (i.e. waste that has had recyclable and re-usable materials source segregated) and commercial and industrial (C&I) waste derived from residential, commercial and industrial sources. All waste material for processing received at the facility is non-hazardous. \n\nWaste material arrives by road and is weighed before proceeding into the tipping hall where it is tipped into the waste bunker of sufficient capacity to hold several days waste inputs.\n\nMoving grate technology is used for burning the waste material. The furnace design ensures that a temperature of at least 850°C for a period of at least two seconds is achieved in the combustion chamber. To ensure that the temperature does not fall below 850°C auxiliary burners firing fuel oil are automatically triggered by online process monitoring equipment.\n\nHot gases from the furnace pass into a boiler. Steam raised in the boiler is passed to a turbine to generate electricity. Combustion gases are cleaned before they are released to atmosphere. There are four components to the gas cleaning abatement technique;\n- Selective Non-Catalytic Reduction (SNCR) involving the injection of ammonia into the combustion chamber above the flame providing for the abatement of nitrogen oxides.\n- Dry hydrated lime re-agent injected to neutralise acid gas compounds.\n- Activated carbon injected to absorb heavy metals, dioxins and furans.\n- Bag filtration to remove fine particulates. The residues of the bag filters are collected and directed to a residues silo. Part of the residues are recycled to the reagent injection points to ensure maximum usage of the lime content.\n\nCleaned flue gases exiting the abatement system of the incinerator line are discharged through the 75m tall stack. Gases are continuously monitored for particulate matter, oxides of nitrogen, sulphur dioxide, carbon monoxide, total organic carbon, hydrogen chloride and ammonia. Monitoring for heavy metals, dioxins, nitrous oxide and hydrogen fluoride is carried out periodically.\n\nUnder normal circumstances there are no liquid effluent emissions from the incinerator. Water arising from boiler blowdown and water treatment backwash is recycled to the Incinerator Bottom Ash (IBA) quench. Water surplus to the requirements of quenching is discharged to the sewerage system.  \n\nAll plant areas are surfaced to the appropriate standards for the activities within those areas. All liquid tanks and drums whose emissions to water or land could cause pollution, are contained in adequate bunding constructed in line with industry best practice standards and sized to contain 110% of the contents of the largest tank or 25% of the total tonnage within the bund; whichever is the larger. Materials used for surfacing of process areas and bunds are resistant to the materials they may come into contact with.\n\nThere are no direct discharges to groundwater from the facility. \n\nThe solid residues produced by the EFW facility are Incinerator Bottom Ash (IBA) and Air Pollution Control (APC) residues. APC residues are hazardous and sent for treatment before landfill disposal. IBA is sent for separation and recycling of the metal content; with the remaining ash being used as a substitute aggregate.\n\n\n",null,null,null,null,null,null,null,null,null,"Include summary of key processes and procedures such as (but not limited to); waste reception, control rooms, grate, bed and boiler, energy & heat  generation, cooling systems, residue management, emission controls, health and safety systems, maintenance"]

{"sheet":"Operational Data","index":3,"n_rows":53,"n_cols":11,"rows_kept":53,"cut":false,"hidden":false,"merged":[[27,2,27,5],[27,6,27,7],[30,1,32,1],[3,1,3,2],[5,10,6,10],[7,1,16,1],[7,10,15,10],[20,1,23,1],[25,1,26,1]]}
[{"$f":"+'Cover Page'!B29","v":"Annual Performance Report 2020"},null,null,{"$f":"+'Cover Page'!B33","v":"Lincolnshire Energy from Waste Facility"}]
[]
["Operational Data",null,null,null,null,null,null,null,null,null,"Notes:"]
["Plant Size",190000,null,"tonnes pa",49.7,"MWth",13.1,"MWe",null,null,"* - RDF to include SRF "]
["No. of combustion lines",1,null,"No. of Turbines:",null,1,null,null,null,null,"** - CHP plants only"]
[null,null,null,null,null,null,null,null,null,null,"2020 updates include;  heat in MWh, water in Litres, NCV in MJ/kg"]
["Waste types received","Unit","Q1","Q2","Q3","Q4","Year Total","%"]
["Household / Local Authority","tonnes",46368,44718,40934,47411,{"$f":"SUM(C8:F8)","v":179431},{"$f":"IF(G8>0,G8/$G$15,\"-\")","v":0.97078412171118478},null,null,"Availability Definition: 'the availability of a line is to be calculated by the number of hours the line reported Continuously Monitored emission levels to the Regulator through the calendar year divided by the total number of hours in that year. \nThe overall plant availability is calculated as the Mean of all lines in the plant. For clarity this includes periods of Other Than Normal Operating Conditions (OTNOC) and abnormal operation.'  \n\nRationale: The primary function of an Energy from Waste facility is the disposal of waste. It follows therefore that the availability of a plant is determined by the period of time a facility spends undertaking this activity."]
["Commercial & Industrial ",null,1561,1793,743,1303,{"$f":"SUM(C9:F9)","v":5400},{"$f":"IF(G9>0,G9/$G$15,\"-\")","v":2.9215878288815188E-2}]
["Hazardous ",null,0,0,0,0,0,{"$f":"IF(G10>0,G10/$G$15,\"-\")","v":"-"}]
["Clinical",null,0,0,0,0,0,{"$f":"IF(G11>0,G11/$G$15,\"-\")","v":"-"}]
["Waste wood (biomass) ",null,0,0,0,0,0,{"$f":"IF(G12>0,G12/$G$15,\"-\")","v":"-"}]
["Refuse Derived Fuel * - H'hold/LA",null,0,0,0,0,0,{"$f":"IF(G13>0,G13/$G$15,\"-\")","v":"-"}]
["Refuse Derived Fuel *  - C&I",null,0,0,0,0,0,{"$f":"IF(G14>0,G14/$G$15,\"-\")","v":"-"}]
["Total waste received",null,{"$f":"SUM(C8:C14)","v":47929},{"$f":"SUM(D8:D14)","v":46511},{"$f":"SUM(E8:E14)","v":41677},{"$f":"SUM(F8:F14)","v":48714},{"$f":"SUM(G8:G14)","v":184831},1]
["Rejected Waste ",null,0,0,0,0,{"$f":"SUM(C16:F16)","v":0},{"$f":"IF(G16>0,G16/$G$15,\"-\")","v":"-"}]
["Unprocessed waste transferred out",null,0,0,0,0,0,{"$f":"IF(G17>0,G17/$G$15,\"-\")","v":"-"}]
["Total waste combusted",null,{"$f":"C15-SUM(C16:C17)","v":47929},{"$f":"D15-SUM(D16:D17)","v":46511},41677,48714,{"$f":"SUM(C18:F18)","v":184831},{"$f":"IF(G18>0,G18/$G$15,\"-\")","v":1}]
[]
["Energy Usage / Export","Unit","Q1","Q2","Q3","Q4","Year Total","KWh/te"]
["Power Generated","MWh",27433,27715,22731,28011,{"$f":"SUM(C21:F21)","v":105890},{"$f":"IF(G21>0,G21*1000/$G$18,\"-\")","v":572.90173185234073}]
["Power Exported",null,25540,25848,20904,26271,{"$f":"SUM(C22:F22)","v":98563},{"$f":"IF(G22>0,G22*1000/$G$18,\"-\")","v":533.26011329268363}]
["Power Used on site",null,3148,3206,2899,3136,{"$f":"SUM(C23:F23)","v":12389},{"$f":"IF(G23>0,G23*1000/$G$18,\"-\")","v":67.028799281505812}]
["Power Imported",null,816,339,3132,453,4740,{"$f":"IF(G24>0,G24*1000/$G$18,\"-\")","v":25.645048720182221}]
["Parasitic Load","%",{"$f":"IF(C21>0,1-C22/(C21+C24),\"-\")","v":9.5897199900881414E-2},{"$f":"IF(D21>0,1-D22/(D21+D24),\"-\")","v":7.8634062878733868E-2},{"$f":"IF(E21>0,1-E22/(E21+E24),\"-\")","v":0.19174109732049649},{"$f":"IF(F21>0,1-F22/(F21+F24),\"-\")","v":7.70446880269815E-2},{"$f":"IF(G21>0,1-G22/(G21+G24),\"-\")","v":0.10907529603181776}]
["Thermal Energy Produced **","MWh",0,0,0,0,0,{"$f":"IF(G26>0,G26*1000/$G$18,\"-\")","v":"-"}]
["Thermal Energy Exported **",null,0,0,0,0,{"$f":"SUM(C27:F27)","v":0},{"$f":"IF(G27>0,G27*1000/$G$18,\"-\")","v":"-"}]
["R1 value",null,0.72,null,null,null,"Operational"]
[]
["Waste Disposal & Recovery","Unit","Q1","Q2","Q3","Q4","Year Total","% inputs"]
["APC Residues - produced","tonnes",1096,1058,838,1116,{"$f":"SUM(C31:F31)","v":4108},{"$f":"IF(G31>0,G31/$G$18,\"-\")","v":2.2225708890824591E-2}]
["IBA - produced",null,9368,11218,8668,10331,39585,{"$f":"IF(G32>0,G32/$G$18,\"-\")","v":0.21416861890050912}]
["Metals recycling",null,5,4,2,3,{"$f":"SUM(C33:F33)","v":14},7.5744869637669004E-5]
[]
["Raw Material Usage","Unit","Q1","Q2","Q3","Q4","Year Total","kg or Ltr /te"]
["Mains Water","ltrs",2577,6210,4324,3921,{"$f":"SUM(C36:F36)","v":17032},{"$f":"IF(G36>0,G36/$G$18,\"-\")","v":9.2149044262055613E-2}]
["Other Water","ltrs",0,0,0,0,0,{"$f":"IF(G37>0,G37/$G$18,\"-\")","v":"-"}]
["Ammonia","kgs",103860,116485,89772,95864,405981,2.1964984228836073]
["Activated Carbon","kgs",11130,11723,9716,11747,44316,0.23976497449020998]
["Lime / hydrated lime","kgs",423428,364745,256250,418781,1463204,7.9164425880939886]
["Fuel oil","ltrs",36479,14212,135357,17756,203804,1.1026505294025353]
["Gas","cf",0,0,0,0,0]
["Other",null,0,0,0,0,0]
[]
["Summary ","Line/Unit","Q1","Q2","Q3","Q4","Year Total",null,null,"Hrs in year "]
["Availability of waste combustion by line, hrs",{"$f":"+B5","v":1},2052,2137,1771,2151,{"$f":"SUM(C46:F46)","v":8111},{"$f":"G46/J46","v":0.92338342440801457},null,{"$f":"8760+24","v":8784}]
["Overall Availability, mean avg. of all lines, hrs",null,2052,2137,1771,2151,{"$f":"AVERAGE(G46:G46)","v":8111},{"$f":"G47/J46","v":0.92338342440801457}]
["Hours of turbine operations, hrs",1,2040,2132,1698,2145,8015,{"$f":"G48/J46","v":0.91245446265938068}]
["Hours of heat / steam export",null,0,0,0,0,0,{"$f":"IF(B49>0,#REF!/J46,\"n/a\")","v":"n/a"}]
["Net Calorific Value of waste","MJ/kg",8.5500000000000007,8.3000000000000007,8.3800000000000008,8.94,null,"-"]
["Abnormal Events","qty.",0,0,0,0,0,{"$f":"IF(G51>0,\"yes\",\"no\")","v":"no"}]
["Abnormal operation","hours",0,0,0,0,0,{"$f":"+(G52)/J46","v":0}]
["Permit Breaches","qty.",0,0,0,0,0,{"$f":"IF(G53>0,\"yes\",\"no\")","v":"no"}]

{"sheet":"Operational Summary","index":4,"n_rows":22,"n_cols":11,"rows_kept":22,"cut":false,"hidden":false,"merged":[[4,0,17,8],[21,0,37,8],[4,10,13,13],[21,10,30,13]]}
[{"$f":"+'Cover Page'!$B$29","v":"Annual Performance Report 2020"},null,null,null,{"$f":"+'Cover Page'!$B$33","v":"Lincolnshire Energy from Waste Facility"}]
[]
["Summary of Plant Operations and Maintenance during the reporting year",null,null,null,null,null,null,null,null,null,"Notes:"]
[]
["During 2020 the site operated for 92.3% of the year with 184,831 tonnes incinerated against a permit limit of 190,000 tonnes with full compliance to all limits set within the permit.\n\nThe site had a planned annual outage within October 2020 where routine maintenance that cannot be done while the plant is online was undertaken. Works were completed during the year to replace the filter bag house hoppers along with replacement of filter bags. A new Particulate analyser was also installed in 2020. \n\nFurther optimisation of the dosing systems for efficient use of the reagents such as lime continued with the replacement of filter bags and the site continues to prepare for the new emission limits following the publishing of the revised Waste Incineration BREF in late 2019.\n\nThe site generated 105,890 MWh of electricity during 2020, exporting 98,563 Mwh to the national grid.",null,null,null,null,null,null,null,null,null,"Include summary of key operational and/or maintenance activity undertaken in the year, such as any major component upgrades and/or replacements "]
[]
[]
[]
[]
[]
[]
[]
[]
[]
[]
[]
[]
[]
[]
["Summary of Residue Handling for the reporting year"]
[]
["Incinerator Bottom Ash (IBA) is sampled 4 times per year for permit compliance purposes, in particular for Total Organic Content where the permit has a limit of 3%. Full compliance was achieved during 2020; no values were above 3% with an average value of 1.6% achieved. \n\nAdditional testing of IBA is undertaken in order to correctly classify the IBA. 24 samples (2 per month) were taken in 2020 to assess for any hazardous content within the IBA. During 2020 all 24 sample results were returned confirming the classification of the IBA as non-hazardous.\n\nAll metals within the IBA are sent along with the non-hazardous IBA to a third party company who operate a permitted facility dedicated to management of bottom ash. Metals are segregated and sent for recycling while the remaining incinerator bottom ash is used as a substitute aggregate material for use within the construction industry.\n\nAir Pollution Control Residues (APCr) formed from the cleaning of the flue gases are also analysed on a quarterly basis, albeit with no limits set within the permit. The APCr is tankered to a permitted treatment site where the material is used to neutralise highly acidic wastes before the resulting residue is sent for disposal.",null,null,null,null,null,null,null,null,null,"Include in here a summary of residue handling regimes and destinations "]

{"sheet":"Perf. Form 1","index":5,"n_rows":52,"n_cols":10,"rows_kept":52,"cut":false,"hidden":false,"merged":[[8,0,8,1],[8,2,8,3],[8,4,8,5],[8,6,8,7],[8,8,8,9],[2,0,2,4],[2,6,2,8],[3,1,3,4],[5,3,5,4],[5,6,5,7],[9,0,9,9],[10,0,10,1],[10,2,10,3],[10,4,10,5],[10,6,10,7],[10,8,10,9],[12,0,12,1],[12,2,12,3],[12,4,12,5],[12,6,12,7],[12,8,12,9],[11,0,11,1],[11,2,11,3],[11,4,11,5],[11,6,11,7],[11,8,11,9],[15,0,15,9],[13,0,13,3],[13,4,13,5],[13,6,13,7],[13,8,13,9],[14,0,14,1],[14,2,14,3],[14,4,14,5],[14,6,14,7],[14,8,14,9],[19,0,19,3],[19,4,19,5],[19,6,19,7],[19,8,19,9],[16,0,16,1],[16,2,16,3],[16,4,16,5],[16,6,16,7],[16,8,16,9],[17,0,17,1],[17,2,17,3],[17,4,17,5],[17,6,17,7],[17,8,17,9],[18,0,18,1],[18,2,18,3],[18,4,18,5],[18,6,18,7],[18,8,18,9],[30,0,30,3],[30,4,30,5],[30,7,30,8],[20,0,20,3],[20,4,20,5],[20,6,20,7],[20,8,20,9],[22,0,22,9],[23,0,25,9],[28,0,28,3],[28,7,28,8],[29,0,29,3],[29,4,29,5],[29,7,29,8],[31,0,31,3],[31,4,31,5],[31,7,31,8],[32,0,32,3],[32,4,32,5],[32,7,32,8],[33,0,33,3],[33,4,33,5],[33,7,33,8],[34,0,34,3],[34,4,34,5],[34,7,34,8],[44,0,44,1],[46,0,46,9],[47,0,47,9],[35,0,35,9],[36,0,37,9],[40,0,40,1],[40,2,40,9],[42,0,42,1],[43,0,43,1]]}
[{"$f":"+'Cover Page'!C39","v":2020}," Annual Reporting Performance Form 1"]
[]
[{"$f":"+'Cover Page'!B31","v":"Permit EPR/FP3739FS"},null,null,null,null,"Operator: ","FCC Environment (Lincolnshire) Limited"]
["Facility:",{"$f":"+'Cover Page'!B33:I33","v":"Lincolnshire Energy from Waste Facility"},null,null,null,"Form:","Performance 1"]
[]
["Reporting  Period from: ",null,null,"2020-01-01",null,"to:","2020-12-31"]
[]
[{"$f":"+A1","v":2020},"Annual Reporting of Waste Disposal and Recovery"]
["Waste Description",null,"Disposal Route(s)",null,"Disposal Tonnes",null,"Recovery Tonnes",null,"% / tonne of waste incinerated"]
["1) Hazardous Wastes"]
["APC Residues",null,"D13",null,{"$f":"'Operational Data'!G31","v":4108},null,null,null,{"$f":"'Operational Data'!H31","v":2.2225708890824591E-2}]
["IBA",null,null,null,null,null,null,null,{"$f":"IF((E12+G12)>0,(E12+G12)/#REF!, \"-\")","v":"-"}]
[null,null,null,null,null,null,null,null,{"$f":"IF((E13+G13)>0,(E13+G13)/#REF!, \"-\")","v":"-"}]
["Total Hazardous Waste",null,null,null,{"$f":"SUM(E11:F13)","v":4108},null,{"$f":"SUM(G11:H13)","v":0},null,{"$f":"I11","v":2.2225708890824591E-2}]
[]
["2) Non-Hazardous Wastes"]
["IBA",null,"RO5",null,null,null,39585.300000000003,null,{"$f":"'Operational Data'!H32","v":0.21416861890050912}]
["Ferrous Metal",null,"R04",null,null,null,14,null,{"$f":"'Operational Data'!H33","v":7.5744869637669004E-5}]
[null,null,null,null,null,null,null,null,{"$f":"IF((E19+G19)>0,(E19+G19)/#REF!, \"-\")","v":"-"}]
["Total Non-Hazardous Waste",null,null,null,{"$f":"SUM(E17:F19)","v":0},null,{"$f":"SUM(G17:H19)","v":39599.300000000003},null,{"$f":"I17","v":0.21416861890050912}]
["TOTAL WASTE",null,null,null,{"$f":"+E20+E14","v":4108},null,{"$f":"+G20+G14","v":39599.300000000003},null,{"$f":"'Perf. Form 1'!I14:J14+'Perf. Form 1'!I17:J17+'Perf. Form 1'!I18:J18","v":0.23647007266097136}]
[]
["Operator’s comments :"]
["Metal from the process is included with IBA as it leaves site where it is sent to a third party permitted facility where separation takes place to allow for the metal to be recycled."]
[]
[]
[]
[{"$f":"+A1","v":2020},"Annual Reporting of Water and Other Raw Material Usage"]
["Raw Material",null,null,null,"Usage",null,"Unit","Specific Usage",null,"Unit"]
["Mains Water",null,null,null,{"$f":"'Operational Data'!G36","v":17032},null,"m3",0.09,null,"m3/te"]
["Total Water",null,null,null,{"$f":"'Operational Data'!G36","v":17032},null,"m3",0.09,null,"m3/te"]
["Urea / Ammonia",null,null,null,{"$f":"'Operational Data'!G38","v":405981},null,"kg",2.2000000000000002,null,"kg/te"]
["Activated Carbon",null,null,null,{"$f":"'Operational Data'!G39","v":44316},null,"kg",0.24,null,"kg/te"]
["Lime",null,null,null,{"$f":"'Operational Data'!G40","v":1463204},null,"kg",7.92,null,"kg/te"]
[]
["Operator’s comments :"]
[]
[]
[]
[{"$f":"+A28","v":2020},"Annual Reporting of other performance indicators "]
["Parameter",null,"Results by Line"]
[null,null,"A1",null,null,null,null,null,"Turbine 1"]
["Operating hours for the year, hours",null,8111,null,null,null,null,null,8015]
["Number of periods of abnormal operation, qty.",null,0]
["Cumulative hours of abnormal operation for this year, hours",null,0]
[]
["Operator’s comments :"]
[]
[]
[]
[]
["Signed: ",null,null,null,null,null,"Date:","2021-01-25"]

{"sheet":"Energy Form 1","index":6,"n_rows":27,"n_cols":8,"rows_kept":27,"cut":false,"hidden":false,"merged":[[2,6,2,8],[4,1,4,4],[6,3,6,4],[6,6,6,7],[8,0,8,2],[8,3,8,4],[8,6,8,8],[9,0,9,2],[9,3,9,4],[9,6,9,8],[10,0,10,2],[10,3,10,4],[10,6,10,8],[11,0,11,2],[11,3,11,4],[11,6,11,8],[12,0,12,2],[12,3,12,4],[12,6,12,8],[15,0,15,8],[16,0,21,8],[13,0,13,2],[13,3,13,4],[13,6,13,8]]}
[{"$f":"+'Cover Page'!C39","v":2020}," Annual Reporting of Energy Usage/Export"]
[]
[{"$f":"+'Cover Page'!B31","v":"Permit EPR/FP3739FS"},null,null,null,null,"Operator: ",{"$f":"'Perf. Form 1'!G3:I3","v":"FCC Environment (Lincolnshire) Limited"}]
[]
["Facility:",{"$f":"+'Cover Page'!B33:I33","v":"Lincolnshire Energy from Waste Facility"},null,null,null,"Form:","Energy 1"]
[]
["Reporting  Period from: ",null,null,{"$f":"+'Perf. Form 1'!D6:E6","v":"2020-01-01"},null,"to:",{"$f":"+'Perf. Form 1'!G6:H6","v":"2020-12-31"}]
[]
["Energy Source",null,null,"Energy Usage",null,"Unit","Specific Usage (KWh/tonne incinerated"]
["Electricity Produced",null,null,{"$f":"'Operational Data'!G21","v":105890},null,"MWh",573]
["Electricity Imported   ",null,null,{"$f":"'Operational Data'!G24","v":4740},null,"MWh",26]
["Electricity Exported",null,null,{"$f":"'Operational Data'!G22","v":98563},null,"MWh",533]
["Gas Oil",null,null,172.7,null,"tonnes",9.3000000000000005E-4]
["Steam/hot water exported",null,null,{"$f":"'Operational Data'!G49","v":0},null,"GWh",0]
[]
["Operator’s comments :"]
[]
[]
[]
[]
[]
[]
[]
[]
[]
[]
["Signed: ",null,null,null,null,null,"Date:","2021-01-25"]

{"sheet":"Permit Compliance","index":7,"n_rows":29,"n_cols":12,"rows_kept":29,"cut":false,"hidden":false,"merged":[[26,0,27,0],[8,11,15,14],[28,4,28,8],[9,0,9,1],[9,2,9,4],[9,5,9,8],[10,0,10,1],[10,2,10,4],[10,5,10,8],[11,0,11,1],[11,2,11,4],[11,5,11,8],[12,0,12,1],[12,2,12,4],[12,5,12,8],[13,0,13,1],[13,2,13,4],[13,5,13,8],[14,0,14,1],[14,2,14,4],[14,5,14,8],[7,0,7,1],[7,2,7,8],[8,0,8,1],[8,2,8,4],[8,5,8,8],[17,1,17,3],[17,4,17,6],[17,7,17,9],[18,1,18,3],[18,4,18,6],[18,7,18,9],[22,7,22,9],[19,1,19,3],[19,4,19,6],[19,7,19,9],[20,1,20,3],[20,4,20,6],[20,7,20,9],[26,1,27,3],[26,4,27,6],[26,7,27,9],[24,0,24,10],[16,0,16,10],[25,1,25,3],[25,4,25,6],[25,7,25,9],[21,1,21,3],[21,4,21,6],[21,7,21,9],[22,1,22,3],[22,4,22,6]]}
[{"$f":"+'Cover Page'!$B$29","v":"Annual Performance Report 2020"},null,null,null,{"$f":"+'Cover Page'!$B$33","v":"Lincolnshire Energy from Waste Facility"}]
[]
["Summary of Permit Compliance"]
[]
["Compliance with permit limits for continuously monitored pollutants"]
[]
["The plant met its emission limits as shown in the table below:"]
["Substance",null,"Percentage time compliant during operation",null,null,null,null,null,null,null,null,"Notes:"]
[null,null,"Half-hourly limit",null,null,"Daily limit",null,null,null,null,null,"Report to 2 decimal places, i.e. xx.xx%\n\nPlease provide a brief summary of each notification or non-compliance in the table (rather than just referring to notifications that were sent to the Regulator).  \n\n"]
["Particulates",null,1,null,null,1]
["Oxides of nitrogen",null,1,null,null,1]
["Sulphur dioxide",null,1,null,null,1]
["Carbon monoxide",null,"\n100% of 95% of 10-min averages",null,null,1]
["Total organic carbon",null,1,null,null,1]
["Hydrogen chloride",null,1,null,null,1]
[]
["Summary of any notifications or non-compliances under the permit"]
["Date","Summary of notification or non-compliance [including Line/Reference]",null,null,"Reason ",null,null,"Measures taken to prevent reoccurrence"]
[]
[]
[]
[]
[]
[]
["Summary of any complaints received and actions to taken to resolve them."]
["Date","Summary of complaint [including Line/Reference]",null,null,"Reason *",null,null,"Measures taken to prevent reoccurrence"]
["2020-08-02","Record ID 127 Odour complaint 2.5km away from site",null,null,"Odour - unsubstantiated ",null,null,"Non required"]
[]
[null,null,null,null,"* including whether substantiated by the operator or the EA"]

{"sheet":"Improvements","index":8,"n_rows":30,"n_cols":5,"rows_kept":30,"cut":false,"hidden":false,"merged":[[28,0,28,9],[29,0,35,9],[4,0,4,9],[5,0,11,9],[13,0,13,9],[14,0,19,9],[21,0,21,9],[22,0,26,9]]}
[{"$f":"+'Cover Page'!$B$29","v":"Annual Performance Report 2020"},null,null,null,{"$f":"+'Cover Page'!$B$33","v":"Lincolnshire Energy from Waste Facility"}]
[]
["Summary of Plant Improvements"]
[]
["Summary of any efficiency improvements that have been completed within the year."]
["Continued optimisation of reagent systems has taken place throughout 2020, while a new particulate analyser was also installed providing for ongoing reliable data and meeting the requirements of the new BREF due for full implementation by the end of 2023."]
[]
[]
[]
[]
[]
[]
[]
["Summary of any permit improvement conditions that have been completed within the year and the resulting environmental benefits."]
["No improvement conditions were required during the year."]
[]
[]
[]
[]
[]
[]
["Summary of any changes to the plant or operating techniques which required a variation to the permit and a summary of the resulting environmental impact."]
["No changes were required during 2020"]
[]
[]
[]
[]
[]
["Summary of any other improvements made to the plant or planned to be made and a summary of the resulting environmental benefits."]
["An additional compressor was installed in 2020, providing additional security of compressed air for the facility while doing so in a more energy efficient manner."]

{"sheet":"Public Liasion","index":9,"n_rows":19,"n_cols":5,"rows_kept":19,"cut":false,"hidden":false,"merged":[[12,0,12,1],[12,2,12,9],[5,0,5,1],[5,2,5,9],[6,0,7,1],[6,2,7,9],[8,0,9,1],[8,2,9,9],[11,0,11,9],[18,0,18,9],[13,0,14,1],[13,2,14,9],[15,0,16,1],[15,2,16,9]]}
[{"$f":"+'Cover Page'!$B$29","v":"Annual Performance Report 2020"},null,null,null,{"$f":"+'Cover Page'!$B$33","v":"Lincolnshire Energy from Waste Facility"}]
[]
["Details of Public & Stakeholder Liaison"]
[]
["Summary of events held during the reporting year."]
["Date",null,"Description"]
["2020-10-30",null,"Community liaison group meeting"]
[]
["N/A",null,"Due to the Coronavirus pandemic no events were held during 2020. Information including emissions data is regularly published on the FCC Lincolnshire website"]
[]
[]
["List of events planned for next year"]
["Date",null,"Description"]
["TBC",null,"Events ae currently postponed due to the Coronavirus pandemic."]
[]
[]
[]
[]
["If you wish to be involved in the public liaison programme, please contact 01522 814315 or visit https://lincolnshire.fccenvironment.co.uk/contact-us/ "]

{"sheet":"Residue Quality ","index":10,"n_rows":28,"n_cols":6,"rows_kept":28,"cut":false,"hidden":false,"merged":[[20,3,20,4],[20,5,20,6],[19,3,19,6],[18,0,18,6],[5,0,6,6],[7,0,8,6],[12,0,13,1],[12,2,13,6],[14,0,15,1],[14,2,15,6],[10,0,10,6],[11,0,11,1],[11,2,11,6],[27,0,32,6],[24,3,24,4],[26,0,26,6],[19,0,20,1],[21,0,21,1],[22,0,22,1],[23,0,23,1],[24,0,24,1],[21,3,21,4],[22,3,22,4],[21,5,21,6],[22,5,22,6],[23,5,23,6],[24,5,24,6],[23,3,23,4],[19,2,20,2]]}
[{"$f":"+'Cover Page'!$B$29","v":"Annual Performance Report 2020"},null,null,null,{"$f":"+'Cover Page'!$B$33","v":"Lincolnshire Energy from Waste Facility"}]
[]
["Residue Quality Monitoring Requirements"]
[]
["Summary of monitoring undertaken and compliance"]
["Monitoring of residues for permit compliance was undertaken with full compliance to the residue limit recorded. No specific events were recorded during 2020."]
[]
["All 24 samples taken and analysed as per the ESA protocol were returned demonstrating that the Incinerator Bottom Ash should be classified as non-hazardous. "]
[]
[]
["Commentary on any specific events"]
["Date & Event",null,"Description"]
[]
[]
[]
[]
[]
[]
["Residue Quality Monitoring Results"]
["Parameter (unit) ",null,"Limit","Normal Operation "]
[null,null,null,"Bottom ash  ",null,"APC Residues"]
["Loss on Ignition (average %)",null,"<5%"]
["Total Organic Carbon (average %)",null,"<3%",1.6E-2]
["No. of Assessments Undertaken",null,"---",24,null,4]
["No. of Hazardous Results",null,"---",0]
[]
["Comments :"]
["NB. 24 results relate to assessment against the WM3 criteria, 4 assessments were undertaken for compliance purposes."]

{"sheet":"Water","index":11,"n_rows":19,"n_cols":10,"rows_kept":19,"cut":false,"hidden":false,"merged":[[5,0,6,9],[7,0,8,9],[9,0,9,9],[10,0,10,1],[10,2,10,9],[16,0,16,9],[17,0,17,2],[17,3,17,5],[11,0,12,1],[11,2,12,9],[13,0,14,1],[13,2,14,9],[18,0,18,2],[18,3,18,5],[19,0,19,2],[19,3,19,5],[20,0,20,2],[20,3,20,5]]}
[{"$f":"+'Cover Page'!$B$29","v":"Annual Performance Report 2020"},null,null,null,{"$f":"+'Cover Page'!$B$33","v":"Lincolnshire Energy from Waste Facility"}]
[]
["Emissions to Water"]
[]
["Summary of monitoring undertaken and compliance"]
["The permit requires a visual inspection of the surface water discharge point; water discharged from site is made up from rainwater rather than from any process activity. Any process water discharged would be through a trade effluent consent."]
[]
["During 2020 regular visual inspections of the discharge point were made, with a monthly inspection reported showing that there were no signs of oil or greases within the discharged water. "]
[]
["Commentary on any specific events"]
["Date & Event",null,"Description"]
[]
[]
[]
[]
[]
["Emissions to Water / Sewer"]
["Parameter",null,null,"Monitoring Frequency",null,null,"Limit","Target","Max.","Average"]
["Oil or grease",null,null,"Monthly",null,null,0,0,0,0]

{"sheet":"Air (periodic)","index":12,"n_rows":39,"n_cols":13,"rows_kept":39,"cut":false,"hidden":false,"merged":[[5,12,7,15],[8,12,10,15],[7,0,7,9],[5,0,5,9],[10,0,10,1],[11,0,11,1],[10,3,10,4],[11,3,11,4],[8,0,9,1],[8,5,8,9],[8,3,9,4],[8,2,9,2],[15,0,15,1],[16,0,16,1],[17,0,17,1],[12,0,12,1],[13,0,13,1],[14,0,14,1],[39,0,39,9],[24,0,24,1],[25,0,25,1],[21,0,21,1],[22,0,22,1],[36,0,36,1],[26,0,26,1],[27,0,27,1],[28,0,28,1],[29,0,29,1],[30,0,30,1],[31,0,31,1],[36,3,36,4],[28,3,28,4],[29,3,29,4],[35,3,35,4],[38,0,38,9],[18,0,18,1],[19,0,19,1],[20,0,20,1],[33,3,33,4],[34,3,34,4],[32,0,32,1],[33,0,33,1],[34,0,34,1],[35,0,35,1],[23,0,23,1],[31,3,31,4],[37,0,37,1],[37,3,37,4],[12,3,12,4],[13,3,13,4],[14,3,14,4],[15,3,15,4],[16,3,16,4],[17,3,17,4],[26,3,26,4],[32,3,32,4],[18,3,18,4],[19,3,19,4],[20,3,20,4],[21,3,21,4],[22,3,22,4],[23,3,23,4],[30,3,30,4],[24,3,24,4],[25,3,25,4],[27,3,27,4]]}
[{"$f":"+'Cover Page'!$B$29","v":"Annual Performance Report 2020"},null,null,null,{"$f":"+'Cover Page'!$B$33","v":"Lincolnshire Energy from Waste Facility"}]
[]
["Emissions to Air (periodically monitored)"]
[]
["Summary of monitoring undertaken, standards used and compliance",null,null,null,null,null,null,null,null,null,null,null,"Notes:"]
["Monitoring undertaken to the standards as prescribed in the permit and to MCERT requirements.",null,null,null,null,null,null,null,null,null,null,null,"Template may require adjustment for any bespoke monitoring requirements of permit. "]
[]
["Results of emissions to air that are periodically monitored"]
["Substance",null,"Ref. Period","Emission Limit Value",null,"Average",null,null,null,null,null,null,"User to add additional tables as necessary, depending on whether quarterly or bi-annual reporting is required for the compliance year"]
[null,null,null,null,null,"A1"]
["Hydrogen fluoride",null,"1 hr","2 mg/m3",null,0.83499999999999996]
["Cd and Th and their compounds",null,"6-8hrs","0.05 mg/m3",null,1E-3]
["Hg and its compounds",null,"6-8hrs","0.05 mg/m3",null,1.3500000000000001E-3]
["Sb, As, Pb, Cr, Co, Cu, Mn, Ni, V and their compounds",null,"6-8hrs","0.5 mg/m3",null,9.5000000000000001E-2]
["Dioxins & Furans (I-TEQ)",null,"6-8hrs","0.1 ng/m3",null,4.0000000000000001E-3]
["PCBs (WHO-TEQ Humans / Mammals)",null,"6-8hrs","None set ng/m3",null,6.4000000000000005E-4]
["PCBs (WHO-TEQ Fish)",null,"6-8hrs","None set ng/m3",null,3.0000000000000001E-5]
["PCBs (WHO-TEQ Birds)",null,"6-8hrs","None set ng/m3",null,2.5149999999999999E-3]
["Dioxins & Furans (WHO-TEQ Humans / Mammals)",null,"6-8hrs","None set ng/m3",null,4.2500000000000003E-3]
["Dioxins & Furans (WHO-TEQ Fish)",null,"6-8hrs","None set ng/m3",null,4.45E-3]
["Dioxins & Furans (WHO-TEQ Birds)",null,"6-8hrs","None set ng/m3",null,5.8500000000000002E-3]
["Anthanthrene",null,"6-8hrs","None set µg/m3",null,3.8500000000000001E-3]
["Benzo(a)anthracene",null,"6-8hrs","None set µg/m3",null,3.3500000000000001E-3]
["Benzo(a)pyrene",null,"6-8hrs","None set µg/m3",null,2.5000000000000001E-3]
["Benzo(b)fluoranthene",null,"6-8hrs","None set µg/m3",null,2.5000000000000001E-3]
["Benzo(b)naptho(2,1-d) thiophene",null,"6-8hrs","None set µg/m3",null,3.15E-3]
["Benzo(c)phenanthrene",null,"6-8hrs","None set µg/m3",null,3.5000000000000001E-3]
["Benzo(ghi)perylene",null,"6-8hrs","None set µg/m3",null,3.3500000000000001E-3]
["Benzo(k)fluoranthene",null,"6-8hrs","None set µg/m3",null,1.1849999999999999E-2]
["Cholanthrene",null,"6-8hrs","None set µg/m3",null,3.15E-3]
["Chrysene",null,"6-8hrs","None set µg/m3",null,6.8500000000000002E-3]
["Cyclopenta(cd)pyrene",null,"6-8hrs","None set µg/m3",null,3.5000000000000001E-3]
["Dibenzo(ai)pyrene",null,"6-8hrs","None set µg/m3",null,2.8500000000000001E-3]
["Dibenzo(ah)anthracene",null,"6-8hrs","None set µg/m3",null,3.7499999999999999E-3]
["Fluoranthene",null,"6-8hrs","None set µg/m3",null,2.5000000000000001E-2]
["Indeno(123-cd) pyrene",null,"6-8hrs","None set µg/m3",null,4.3499999999999997E-3]
["Naphthalene",null,"6-8hrs","None set µg/m3",null,0.105]
["Nitrous Oxide (N20)",null,"1hr","None set mg/m3",null,1.81]
["Comments :"]

{"sheet":"Air (CEMS)","index":13,"n_rows":26,"n_cols":12,"rows_kept":26,"cut":false,"hidden":false,"merged":[[24,0,24,8],[26,0,27,8],[11,0,12,0],[5,0,6,8],[8,0,8,8],[9,0,10,0],[9,2,10,2],[9,1,10,1],[9,3,9,4],[9,5,9,6],[9,7,9,8]]}
[{"$f":"+'Cover Page'!$B$29","v":"Annual Performance Report 2020"},null,null,null,{"$f":"+'Cover Page'!$B$33","v":"Lincolnshire Energy from Waste Facility"}]
[]
["Emissions to Air (continuously monitored)"]
[null,null,null,null,null,null,null,null,null,null,null,"Notes:"]
["Summary of monitoring undertaken, standards used and compliance",null,null,null,null,null,null,null,null,null,null,"Template may require adjustment for any bespoke monitoring requirements of permit"]
["Continuous monitoring is undertaken in line with the permit requirements and the BS EN 14181 Standard",null,null,null,null,null,null,null,null,null,null,"Report to 2 decimal places, i.e. xx.xx%"]
[]
[]
["Results of emissions to air that are continuously monitored (maximum and average values for each line)"]
["Substance","Reference Period","Emission Limit Value","A1"]
[null,null,null,"Max.","Avg."]
["Oxides of nitrogen","Daily mean","200 mg/m3 ",{"$f":"NOx!O19","v":153.5},{"$f":"NOx!N19","v":143.35}]
[null,"½ hourly mean","400 mg/m3 ",{"$f":"NOx!M19","v":252.1},{"$f":"NOx!L19","v":143.4}]
["Particulates","Daily mean","10 mg/m3",{"$f":"Particulates!O19","v":2.1},{"$f":"Particulates!N19","v":5.8333333333333327E-2}]
[null,"½ hourly mean","30 mg/m3 ",{"$f":"Particulates!M19","v":12.3},{"$f":"Particulates!L19","v":7.4999999999999997E-2}]
["Total Organic Carbon ","Daily mean","10 mg/m3 ",{"$f":"TOC!O19","v":2},{"$f":"TOC!N19","v":0.375}]
[null,"½ hourly mean","20 mg/m3 ",{"$f":"TOC!M19","v":13.1},{"$f":"Particulates!L19","v":7.4999999999999997E-2}]
["Hydrogen chloride ","Daily mean","10 mg/m3 ",{"$f":"HCl!O19","v":7.8},{"$f":"HCl!N19","v":5.0333333333333341}]
[null,"½ hourly mean","60 mg/m3 ",{"$f":"HCl!M19","v":26.3},{"$f":"HCl!L19","v":5.05}]
["Sulphur dioxide","Daily mean","50 mg/m3 ",{"$f":"'SO2'!O19","v":49.5},{"$f":"'SO2'!N19","v":38.641666666666666}]
[null,"½ hourly mean","200 mg/m3 ",{"$f":"'SO2'!M19","v":133.19999999999999},{"$f":"'SO2'!L19","v":38.358333333333334}]
["Carbon monoxide ","Daily mean","50 mg/m3 ",{"$f":"'CO 95% 10 min'!Q19","v":15.5},{"$f":"'CO 95% 10 min'!P19","v":2.3749999999999996}]
[null,"95%ile 10-min avg *","150 mg/m3 *",{"$f":"'CO 95% 10 min'!M19","v":19.749999999999996},{"$f":"'CO 95% 10 min'!N19","v":2.4333333333333331}]
[" Ammonia","Daily mean","No limit set",{"$f":"'NH3'!O19","v":2.5},{"$f":"'NH3'!N19","v":1.2916666666666667}]
[]
["Comments :"]

{"sheet":"HCl","index":14,"n_rows":79,"n_cols":17,"rows_kept":79,"cut":false,"hidden":false,"merged":[[12,16,15,18],[51,9,63,9],[66,9,78,9],[4,9,4,14],[4,1,4,3],[4,4,4,6],[48,0,51,6],[47,0,47,6],[6,9,18,9],[21,9,33,9],[36,9,48,9],[3,16,7,18],[9,16,11,18]]}
[{"$f":"+'Cover Page'!$B$29","v":"Annual Performance Report 2020"},null,null,null,{"$f":"+'Cover Page'!$B$33","v":"Lincolnshire Energy from Waste Facility"}]
[]
["Monitoring of Hydrogen Chloride emissions",null,null,"Whole Installation",null,null,"See  Notes in Cell Q3",null,null,{"$f":"+A3","v":"Monitoring of Hydrogen Chloride emissions"},null,null,null,"Per Combustion Line",null,null,"Notes:"]
[null,null,null,null,null,null,null,null,null,null,null,null,null,null,null,null,"User to add logic to complete Whole installation, Table A5:G18. From the data in Per Combustion Line, Table J6:O79, subject to No. of lines installed"]
["mg/Nm3","1/2 Hourly Reference Periods",null,null,"Daily Reference Periods"]
[{"$f":"+'Cover Page'!C39","v":2020},"1/2 hourly HCl ELV","Monthly 1/2 hourly mean","Highest 1/2 hourly maximum","Daily HCl ELV","Monthly daily mean","Highest daily maximum",null,null,{"$f":"+A6","v":2020},"mg/Nm3","Monthly 1/2 hourly mean","Monthly 1/2 hourly maximum","Monthly daily mean","Monthly daily maximum"]
["Jan",60,{"$f":"L7","v":6.1},{"$f":"M7","v":10.4},10,{"$f":"N7","v":6},{"$f":"O7","v":7},null,null,"A1","Jan",6.1,10.4,6,7]
["Feb",60,{"$f":"L8","v":5.9},{"$f":"M8","v":10.6},10,{"$f":"N8","v":5.9},{"$f":"O8","v":7},null,null,null,"Feb",5.9,10.6,5.9,7]
["Mar",60,3.2,23.6,10,3.1,5.8,null,null,null,"Mar",3.2,23.6,3.1,5.8,null,"Whole Installation table A5:G18:"]
["Apr",60,4.5999999999999996,8.1999999999999993,10,4.5999999999999996,6,null,null,null,"Apr",4.5999999999999996,8.1999999999999993,4.5999999999999996,6,null,"Mean: for 1/2 hourly and daily periods calculate mean of values across all operational combustion lines for the month"]
["May",60,5.3,26.3,10,5.2,7.4,null,null,null,"May",5.3,26.3,5.2,7.4]
["Jun",60,6.5,13.2,10,6.5,7.8,null,null,null,"Jun",6.5,13.2,6.5,7.8]
["Jul",60,5.4,11.3,10,5.4,7.3,null,null,null,"Jul",5.4,11.3,5.4,7.3,null,"Maximum: for 1/2 hourly and daily periods use the highest value across all operational combustion lines for the month"]
["Aug",60,3.5,11.3,10,3.6,6.8,null,null,null,"Aug",3.5,11.3,3.6,6.8]
["Sep",60,6.2,16.399999999999999,10,6.2,7.3,null,null,null,"Sep",6.2,16.399999999999999,6.2,7.3]
["Oct",60,5.6,16.3,10,5.6,7.3,null,null,null,"Oct",5.6,16.3,5.6,7.3]
["Nov",60,5,10.1,10,5.0999999999999996,7.4,null,null,null,"Nov",5,10.1,5.0999999999999996,7.4]
["Dec",60,3.3,7,10,3.2,4.2,null,null,null,"Dec",3.3,7,3.2,4.2]
[null,null,null,null,null,null,null,null,null,null,"Annual",{"$f":"AVERAGE(L7:L18)","v":5.05},{"$f":"MAX(M7:M18)","v":26.3},{"$f":"AVERAGE(N7:N18)","v":5.0333333333333341},{"$f":"MAX(O7:O18)","v":7.8}]
[]
[null,null,null,null,null,null,null,null,null,{"$f":"+A6","v":2020},"mg/Nm3","Monthly 1/2 hourly mean","Monthly 1/2 hourly maximum","Monthly daily mean","Monthly daily maximum"]
[null,null,null,null,null,null,null,null,null,"A2","Jan"]
[null,null,null,null,null,null,null,null,null,null,"Feb"]
[null,null,null,null,null,null,null,null,null,null,"Mar"]
[null,null,null,null,null,null,null,null,null,null,"Apr"]
[null,null,null,null,null,null,null,null,null,null,"May"]
[null,null,null,null,null,null,null,null,null,null,"Jun"]
[null,null,null,null,null,null,null,null,null,null,"Jul"]
[null,null,null,null,null,null,null,null,null,null,"Aug"]
[null,null,null,null,null,null,null,null,null,null,"Sep"]
[null,null,null,null,null,null,null,null,null,null,"Oct"]
[null,null,null,null,null,null,null,null,null,null,"Nov"]
[null,null,null,null,null,null,null,null,null,null,"Dec"]
[null,null,null,null,null,null,null,null,null,null,"Annual",{"$f":"AVERAGE(L22:L33)","v":{"$error":"#DIV/0!"}},{"$f":"MAX(M22:M33)","v":0},{"$f":"AVERAGE(N22:N33)","v":{"$error":"#DIV/0!"}},{"$f":"MAX(O22:O33)","v":0}]
[]
[null,null,null,null,null,null,null,null,null,{"$f":"+A6","v":2020},"mg/Nm3","Monthly 1/2 hourly mean","Monthly 1/2 hourly maximum","Monthly daily mean","Monthly daily maximum"]
[null,null,null,null,null,null,null,null,null,"A3","Jan"]
[null,null,null,null,null,null,null,null,null,null,"Feb"]
[null,null,null,null,null,null,null,null,null,null,"Mar"]
[null,null,null,null,null,null,null,null,null,null,"Apr"]
[null,null,null,null,null,null,null,null,null,null,"May"]
[null,null,null,null,null,null,null,null,null,null,"Jun"]
[null,null,null,null,null,null,null,null,null,null,"Jul"]
[null,null,null,null,null,null,null,null,null,null,"Aug"]
[null,null,null,null,null,null,null,null,null,null,"Sep"]
[null,null,null,null,null,null,null,null,null,null,"Oct"]
[null,null,null,null,null,null,null,null,null,null,"Nov"]
["Comments :",null,null,null,null,null,null,null,null,null,"Dec"]
[null,null,null,null,null,null,null,null,null,null,"Annual",{"$f":"AVERAGE(L37:L48)","v":{"$error":"#DIV/0!"}},{"$f":"MAX(M37:M48)","v":0},{"$f":"AVERAGE(N37:N48)","v":{"$error":"#DIV/0!"}},{"$f":"MAX(O37:O48)","v":0}]
[]
[null,null,null,null,null,null,null,null,null,{"$f":"+A6","v":2020},"mg/Nm3","Monthly 1/2 hourly mean","Monthly 1/2 hourly maximum","Monthly daily mean","Monthly daily maximum"]
[null,null,null,null,null,null,null,null,null,"A4","Jan"]
[null,null,null,null,null,null,null,null,null,null,"Feb"]
[null,null,null,null,null,null,null,null,null,null,"Mar"]
[null,null,null,null,null,null,null,null,null,null,"Apr"]
[null,null,null,null,null,null,null,null,null,null,"May"]
[null,null,null,null,null,null,null,null,null,null,"Jun"]
[null,null,null,null,null,null,null,null,null,null,"Jul"]
[null,null,null,null,null,null,null,null,null,null,"Aug"]
[null,null,null,null,null,null,null,null,null,null,"Sep"]
[null,null,null,null,null,null,null,null,null,null,"Oct"]
[null,null,null,null,null,null,null,null,null,null,"Nov"]
[null,null,null,null,null,null,null,null,null,null,"Dec"]
[null,null,null,null,null,null,null,null,null,null,"Annual",{"$f":"AVERAGE(L52:L63)","v":{"$error":"#DIV/0!"}},{"$f":"MAX(M52:M63)","v":0},{"$f":"AVERAGE(N52:N63)","v":{"$error":"#DIV/0!"}},{"$f":"MAX(O52:O63)","v":0}]
[]
[null,null,null,null,null,null,null,null,null,{"$f":"+A6","v":2020},"mg/Nm3","Monthly 1/2 hourly mean","Monthly 1/2 hourly maximum","Monthly daily mean","Monthly daily maximum"]
[null,null,null,null,null,null,null,null,null,"A5","Jan"]
[null,null,null,null,null,null,null,null,null,null,"Feb"]
[null,null,null,null,null,null,null,null,null,null,"Mar"]
[null,null,null,null,null,null,null,null,null,null,"Apr"]
[null,null,null,null,null,null,null,null,null,null,"May"]
[null,null,null,null,null,null,null,null,null,null,"Jun"]
[null,null,null,null,null,null,null,null,null,null,"Jul"]
[null,null,null,null,null,null,null,null,null,null,"Aug"]
[null,null,null,null,null,null,null,null,null,null,"Sep"]
[null,null,null,null,null,null,null,null,null,null,"Oct"]
[null,null,null,null,null,null,null,null,null,null,"Nov"]
[null,null,null,null,null,null,null,null,null,null,"Dec"]
[null,null,null,null,null,null,null,null,null,null,"Annual",{"$f":"AVERAGE(L67:L78)","v":{"$error":"#DIV/0!"}},{"$f":"MAX(M67:M78)","v":0},{"$f":"AVERAGE(N67:N78)","v":{"$error":"#DIV/0!"}},{"$f":"MAX(O67:O78)","v":0}]

{"sheet":"SO2","index":15,"n_rows":79,"n_cols":17,"rows_kept":79,"cut":false,"hidden":false,"merged":[[3,16,7,18],[9,16,11,18],[12,16,15,18],[66,9,78,9],[4,1,4,3],[4,4,4,6],[4,9,4,14],[6,9,18,9],[21,9,33,9],[36,9,48,9],[47,0,47,6],[48,0,51,6],[51,9,63,9]]}
[{"$f":"+'Cover Page'!$B$29","v":"Annual Performance Report 2020"},null,null,null,{"$f":"+'Cover Page'!$B$33","v":"Lincolnshire Energy from Waste Facility"}]
[]
["Monitoring of Sulphur dioxide emissions",null,null,"Whole Installation",null,null,"See  Notes in Cell Q3",null,null,{"$f":"+A3","v":"Monitoring of Sulphur dioxide emissions"},null,null,null,"Per Combustion Line",null,null,"Notes:"]
[null,null,null,null,null,null,null,null,null,null,null,null,null,null,null,null,"User to add logic to complete Whole installation, Table A5:G18. From the data in Per Combustion Line, Table J6:O79, subject to No. of lines installed"]
["mg/Nm3","1/2 Hourly Reference Periods",null,null,"Daily Reference Periods"]
[{"$f":"+'Cover Page'!C39","v":2020},"1/2 hourly SO2 ELV","Monthly 1/2 hourly mean","Highest 1/2 hourly maximum","Daily SO2 ELV","Monthly daily mean","Highest daily maximum",null,null,{"$f":"+A6","v":2020},"mg/Nm3","Monthly 1/2 hourly mean","Monthly 1/2 hourly maximum","Monthly daily mean","Monthly daily maximum"]
["Jan",200,{"$f":"L7","v":38.200000000000003},{"$f":"M7","v":88.5},50,{"$f":"N7","v":38.200000000000003},{"$f":"O7","v":46},null,null,"A1","Jan",38.200000000000003,88.5,38.200000000000003,46]
["Feb",200,{"$f":"L8","v":38.200000000000003},{"$f":"M8","v":81.7},50,{"$f":"N8","v":38.200000000000003},{"$f":"O8","v":47.3},null,null,null,"Feb",38.200000000000003,81.7,38.200000000000003,47.3]
["Mar",200,43.5,116.4,50,43.7,49.5,null,null,null,"Mar",43.5,116.4,43.7,49.5,null,"Whole Installation table A5:G18:"]
["Apr",200,38.5,78.2,50,38.4,46.9,null,null,null,"Apr",38.5,78.2,38.4,46.9,null,"Mean: for 1/2 hourly and daily periods calculate mean of values across all operational combustion lines for the month"]
["May",200,38.1,133.19999999999999,50,38.1,44.5,null,null,null,"May",38.1,133.19999999999999,38.1,44.5]
["Jun",200,29.2,77.400000000000006,50,29.1,41.1,null,null,null,"Jun",29.2,77.400000000000006,29.1,41.1]
["Jul",200,27.2,78.7,50,27.8,40.700000000000003,null,null,null,"Jul",27.2,78.7,27.8,40.700000000000003,null,"Maximum: for 1/2 hourly and daily periods use the highest value across all operational combustion lines for the month"]
["Aug",200,38.799999999999997,82.5,50,41.9,48.6,null,null,null,"Aug",38.799999999999997,82.5,41.9,48.6]
["Sep",200,38.700000000000003,109.2,50,38.700000000000003,44.8,null,null,null,"Sep",38.700000000000003,109.2,38.700000000000003,44.8]
["Oct",200,40.6,95.7,50,40.5,46.2,null,null,null,"Oct",40.6,95.7,40.5,46.2]
["Nov",200,44.2,104.9,50,44.1,48.8,null,null,null,"Nov",44.2,104.9,44.1,48.8]
["Dec",200,45.1,91.1,50,45,49,null,null,null,"Dec",45.1,91.1,45,49]
[null,null,null,null,null,null,null,null,null,null,"Annual",{"$f":"AVERAGE(L7:L18)","v":38.358333333333334},{"$f":"MAX(M7:M18)","v":133.19999999999999},{"$f":"AVERAGE(N7:N18)","v":38.641666666666666},{"$f":"MAX(O7:O18)","v":49.5}]
[]
[null,null,null,null,null,null,null,null,null,{"$f":"+A6","v":2020},"mg/Nm3","Monthly 1/2 hourly mean","Monthly 1/2 hourly maximum","Monthly daily mean","Monthly daily maximum"]
[null,null,null,null,null,null,null,null,null,"A2","Jan"]
[null,null,null,null,null,null,null,null,null,null,"Feb"]
[null,null,null,null,null,null,null,null,null,null,"Mar"]
[null,null,null,null,null,null,null,null,null,null,"Apr"]
[null,null,null,null,null,null,null,null,null,null,"May"]
[null,null,null,null,null,null,null,null,null,null,"Jun"]
[null,null,null,null,null,null,null,null,null,null,"Jul"]
[null,null,null,null,null,null,null,null,null,null,"Aug"]
[null,null,null,null,null,null,null,null,null,null,"Sep"]
[null,null,null,null,null,null,null,null,null,null,"Oct"]
[null,null,null,null,null,null,null,null,null,null,"Nov"]
[null,null,null,null,null,null,null,null,null,null,"Dec"]
[null,null,null,null,null,null,null,null,null,null,"Annual",{"$f":"AVERAGE(L22:L33)","v":{"$error":"#DIV/0!"}},{"$f":"MAX(M22:M33)","v":0},{"$f":"AVERAGE(N22:N33)","v":{"$error":"#DIV/0!"}},{"$f":"MAX(O22:O33)","v":0}]
[]
[null,null,null,null,null,null,null,null,null,{"$f":"+A6","v":2020},"mg/Nm3","Monthly 1/2 hourly mean","Monthly 1/2 hourly maximum","Monthly daily mean","Monthly daily maximum"]
[null,null,null,null,null,null,null,null,null,"A3","Jan"]
[null,null,null,null,null,null,null,null,null,null,"Feb"]
[null,null,null,null,null,null,null,null,null,null,"Mar"]
[null,null,null,null,null,null,null,null,null,null,"Apr"]
[null,null,null,null,null,null,null,null,null,null,"May"]
[null,null,null,null,null,null,null,null,null,null,"Jun"]
[null,null,null,null,null,null,null,null,null,null,"Jul"]
[null,null,null,null,null,null,null,null,null,null,"Aug"]
[null,null,null,null,null,null,null,null,null,null,"Sep"]
[null,null,null,null,null,null,null,null,null,null,"Oct"]
[null,null,null,null,null,null,null,null,null,null,"Nov"]
["Comments :",null,null,null,null,null,null,null,null,null,"Dec"]
[null,null,null,null,null,null,null,null,null,null,"Annual",{"$f":"AVERAGE(L37:L48)","v":{"$error":"#DIV/0!"}},{"$f":"MAX(M37:M48)","v":0},{"$f":"AVERAGE(N37:N48)","v":{"$error":"#DIV/0!"}},{"$f":"MAX(O37:O48)","v":0}]
[]
[null,null,null,null,null,null,null,null,null,{"$f":"+A6","v":2020},"mg/Nm3","Monthly 1/2 hourly mean","Monthly 1/2 hourly maximum","Monthly daily mean","Monthly daily maximum"]
[null,null,null,null,null,null,null,null,null,"A4","Jan"]
[null,null,null,null,null,null,null,null,null,null,"Feb"]
[null,null,null,null,null,null,null,null,null,null,"Mar"]
[null,null,null,null,null,null,null,null,null,null,"Apr"]
[null,null,null,null,null,null,null,null,null,null,"May"]
[null,null,null,null,null,null,null,null,null,null,"Jun"]
[null,null,null,null,null,null,null,null,null,null,"Jul"]
[null,null,null,null,null,null,null,null,null,null,"Aug"]
[null,null,null,null,null,null,null,null,null,null,"Sep"]
[null,null,null,null,null,null,null,null,null,null,"Oct"]
[null,null,null,null,null,null,null,null,null,null,"Nov"]
[null,null,null,null,null,null,null,null,null,null,"Dec"]
[null,null,null,null,null,null,null,null,null,null,"Annual",{"$f":"AVERAGE(L52:L63)","v":{"$error":"#DIV/0!"}},{"$f":"MAX(M52:M63)","v":0},{"$f":"AVERAGE(N52:N63)","v":{"$error":"#DIV/0!"}},{"$f":"MAX(O52:O63)","v":0}]
[]
[null,null,null,null,null,null,null,null,null,{"$f":"+A6","v":2020},"mg/Nm3","Monthly 1/2 hourly mean","Monthly 1/2 hourly maximum","Monthly daily mean","Monthly daily maximum"]
[null,null,null,null,null,null,null,null,null,"A5","Jan"]
[null,null,null,null,null,null,null,null,null,null,"Feb"]
[null,null,null,null,null,null,null,null,null,null,"Mar"]
[null,null,null,null,null,null,null,null,null,null,"Apr"]
[null,null,null,null,null,null,null,null,null,null,"May"]
[null,null,null,null,null,null,null,null,null,null,"Jun"]
[null,null,null,null,null,null,null,null,null,null,"Jul"]
[null,null,null,null,null,null,null,null,null,null,"Aug"]
[null,null,null,null,null,null,null,null,null,null,"Sep"]
[null,null,null,null,null,null,null,null,null,null,"Oct"]
[null,null,null,null,null,null,null,null,null,null,"Nov"]
[null,null,null,null,null,null,null,null,null,null,"Dec"]
[null,null,null,null,null,null,null,null,null,null,"Annual",{"$f":"AVERAGE(L67:L78)","v":{"$error":"#DIV/0!"}},{"$f":"MAX(M67:M78)","v":0},{"$f":"AVERAGE(N67:N78)","v":{"$error":"#DIV/0!"}},{"$f":"MAX(O67:O78)","v":0}]

{"sheet":"NOx","index":16,"n_rows":79,"n_cols":17,"rows_kept":79,"cut":false,"hidden":false,"merged":[[3,16,7,18],[9,16,11,18],[12,16,15,18],[66,9,78,9],[4,1,4,3],[4,4,4,6],[4,9,4,14],[6,9,18,9],[21,9,33,9],[36,9,48,9],[47,0,47,6],[48,0,51,6],[51,9,63,9]]}
[{"$f":"+'Cover Page'!$B$29","v":"Annual Performance Report 2020"},null,null,null,{"$f":"+'Cover Page'!$B$33","v":"Lincolnshire Energy from Waste Facility"}]
[]
["Monitoring of Oxides of Nitrogen emissions",null,null,"Whole Installation",null,null,"See  Notes in Cell Q3",null,null,{"$f":"+A3","v":"Monitoring of Oxides of Nitrogen emissions"},null,null,null,"Per Combustion Line",null,null,"Notes:"]
[null,null,null,null,null,null,null,null,null,null,null,null,null,null,null,null,"User to add logic to complete Whole installation, Table A5:G18. From the data in Per Combustion Line, Table J6:O79, subject to No. of lines installed"]
["mg/Nm3","1/2 Hourly Reference Periods",null,null,"Daily Reference Periods"]
[{"$f":"+'Cover Page'!C39","v":2020},"1/2 hourly NOx ELV","Monthly 1/2 hourly mean","Highest 1/2 hourly maximum","Daily NOx ELV","Monthly daily mean","Highest daily maximum",null,null,{"$f":"+A6","v":2020},"mg/Nm3","Monthly 1/2 hourly mean","Monthly 1/2 hourly maximum","Monthly daily mean","Monthly daily maximum"]
["Jan",400,{"$f":"L7","v":135.9},{"$f":"M7","v":161.5},200,{"$f":"N7","v":135.9},{"$f":"O7","v":136.5},null,null,"A1","Jan",135.9,161.5,135.9,136.5]
["Feb",400,{"$f":"L8","v":135.9},{"$f":"M8","v":159.6},200,{"$f":"N8","v":135.9},{"$f":"O8","v":136.4},null,null,null,"Feb",135.9,159.6,135.9,136.4]
["Mar",400,136.1,220.4,200,135.80000000000001,136.1,null,null,null,"Mar",136.1,220.4,135.80000000000001,136.1,null,"Whole Installation table A5:G18:"]
["Apr",400,136,186,200,136,137.1,null,null,null,"Apr",136,186,136,137.1,null,"Mean: for 1/2 hourly and daily periods calculate mean of values across all operational combustion lines for the month"]
["May",400,136,189.9,200,136,137.19999999999999,null,null,null,"May",136,189.9,136,137.19999999999999]
["Jun",400,135.9,148.5,200,135.9,136.19999999999999,null,null,null,"Jun",135.9,148.5,135.9,136.19999999999999]
["Jul",400,145.69999999999999,252.1,200,145.9,153.5,null,null,null,"Jul",145.69999999999999,252.1,145.9,153.5,null,"Maximum: for 1/2 hourly and daily periods use the highest value across all operational combustion lines for the month"]
["Aug",400,152.1,242.4,200,151.80000000000001,152.1,null,null,null,"Aug",152.1,242.4,151.80000000000001,152.1]
["Sep",400,152,163.69999999999999,200,151.9,152.1,null,null,null,"Sep",152,163.69999999999999,151.9,152.1]
["Oct",400,151.9,167.8,200,151.80000000000001,152.1,null,null,null,"Oct",151.9,167.8,151.80000000000001,152.1]
["Nov",400,151.69999999999999,213.1,200,151.69999999999999,152.1,null,null,null,"Nov",151.69999999999999,213.1,151.69999999999999,152.1]
["Dec",400,151.6,164.3,200,151.6,152,null,null,null,"Dec",151.6,164.3,151.6,152]
[null,null,null,null,null,null,null,null,null,null,"Annual",{"$f":"AVERAGE(L7:L18)","v":143.4},{"$f":"MAX(M7:M18)","v":252.1},{"$f":"AVERAGE(N7:N18)","v":143.35},{"$f":"MAX(O7:O18)","v":153.5}]
[]
[null,null,null,null,null,null,null,null,null,{"$f":"+A6","v":2020},"mg/Nm3","Monthly 1/2 hourly mean","Monthly 1/2 hourly maximum","Monthly daily mean","Monthly daily maximum"]
[null,null,null,null,null,null,null,null,null,"A2","Jan"]
[null,null,null,null,null,null,null,null,null,null,"Feb"]
[null,null,null,null,null,null,null,null,null,null,"Mar"]
[null,null,null,null,null,null,null,null,null,null,"Apr"]
[null,null,null,null,null,null,null,null,null,null,"May"]
[null,null,null,null,null,null,null,null,null,null,"Jun"]
[null,null,null,null,null,null,null,null,null,null,"Jul"]
[null,null,null,null,null,null,null,null,null,null,"Aug"]
[null,null,null,null,null,null,null,null,null,null,"Sep"]
[null,null,null,null,null,null,null,null,null,null,"Oct"]
[null,null,null,null,null,null,null,null,null,null,"Nov"]
[null,null,null,null,null,null,null,null,null,null,"Dec"]
[null,null,null,null,null,null,null,null,null,null,"Annual",{"$f":"AVERAGE(L22:L33)","v":{"$error":"#DIV/0!"}},{"$f":"MAX(M22:M33)","v":0},{"$f":"AVERAGE(N22:N33)","v":{"$error":"#DIV/0!"}},{"$f":"MAX(O22:O33)","v":0}]
[]
[null,null,null,null,null,null,null,null,null,{"$f":"+A6","v":2020},"mg/Nm3","Monthly 1/2 hourly mean","Monthly 1/2 hourly maximum","Monthly daily mean","Monthly daily maximum"]
[null,null,null,null,null,null,null,null,null,"A3","Jan"]
[null,null,null,null,null,null,null,null,null,null,"Feb"]
[null,null,null,null,null,null,null,null,null,null,"Mar"]
[null,null,null,null,null,null,null,null,null,null,"Apr"]
[null,null,null,null,null,null,null,null,null,null,"May"]
[null,null,null,null,null,null,null,null,null,null,"Jun"]
[null,null,null,null,null,null,null,null,null,null,"Jul"]
[null,null,null,null,null,null,null,null,null,null,"Aug"]
[null,null,null,null,null,null,null,null,null,null,"Sep"]
[null,null,null,null,null,null,null,null,null,null,"Oct"]
[null,null,null,null,null,null,null,null,null,null,"Nov"]
["Comments :",null,null,null,null,null,null,null,null,null,"Dec"]
[null,null,null,null,null,null,null,null,null,null,"Annual",{"$f":"AVERAGE(L37:L48)","v":{"$error":"#DIV/0!"}},{"$f":"MAX(M37:M48)","v":0},{"$f":"AVERAGE(N37:N48)","v":{"$error":"#DIV/0!"}},{"$f":"MAX(O37:O48)","v":0}]
[]
[null,null,null,null,null,null,null,null,null,{"$f":"+A6","v":2020},"mg/Nm3","Monthly 1/2 hourly mean","Monthly 1/2 hourly maximum","Monthly daily mean","Monthly daily maximum"]
[null,null,null,null,null,null,null,null,null,"A4","Jan"]
[null,null,null,null,null,null,null,null,null,null,"Feb"]
[null,null,null,null,null,null,null,null,null,null,"Mar"]
[null,null,null,null,null,null,null,null,null,null,"Apr"]
[null,null,null,null,null,null,null,null,null,null,"May"]
[null,null,null,null,null,null,null,null,null,null,"Jun"]
[null,null,null,null,null,null,null,null,null,null,"Jul"]
[null,null,null,null,null,null,null,null,null,null,"Aug"]
[null,null,null,null,null,null,null,null,null,null,"Sep"]
[null,null,null,null,null,null,null,null,null,null,"Oct"]
[null,null,null,null,null,null,null,null,null,null,"Nov"]
[null,null,null,null,null,null,null,null,null,null,"Dec"]
[null,null,null,null,null,null,null,null,null,null,"Annual",{"$f":"AVERAGE(L52:L63)","v":{"$error":"#DIV/0!"}},{"$f":"MAX(M52:M63)","v":0},{"$f":"AVERAGE(N52:N63)","v":{"$error":"#DIV/0!"}},{"$f":"MAX(O52:O63)","v":0}]
[]
[null,null,null,null,null,null,null,null,null,{"$f":"+A6","v":2020},"mg/Nm3","Monthly 1/2 hourly mean","Monthly 1/2 hourly maximum","Monthly daily mean","Monthly daily maximum"]
[null,null,null,null,null,null,null,null,null,"A5","Jan"]
[null,null,null,null,null,null,null,null,null,null,"Feb"]
[null,null,null,null,null,null,null,null,null,null,"Mar"]
[null,null,null,null,null,null,null,null,null,null,"Apr"]
[null,null,null,null,null,null,null,null,null,null,"May"]
[null,null,null,null,null,null,null,null,null,null,"Jun"]
[null,null,null,null,null,null,null,null,null,null,"Jul"]
[null,null,null,null,null,null,null,null,null,null,"Aug"]
[null,null,null,null,null,null,null,null,null,null,"Sep"]
[null,null,null,null,null,null,null,null,null,null,"Oct"]
[null,null,null,null,null,null,null,null,null,null,"Nov"]
[null,null,null,null,null,null,null,null,null,null,"Dec"]
[null,null,null,null,null,null,null,null,null,null,"Annual",{"$f":"AVERAGE(L67:L78)","v":{"$error":"#DIV/0!"}},{"$f":"MAX(M67:M78)","v":0},{"$f":"AVERAGE(N67:N78)","v":{"$error":"#DIV/0!"}},{"$f":"MAX(O67:O78)","v":0}]

{"sheet":"TOC","index":17,"n_rows":79,"n_cols":17,"rows_kept":79,"cut":false,"hidden":false,"merged":[[3,16,7,18],[9,16,11,18],[12,16,15,18],[66,9,78,9],[4,1,4,3],[4,4,4,6],[4,9,4,14],[6,9,18,9],[21,9,33,9],[36,9,48,9],[47,0,47,6],[48,0,51,6],[51,9,63,9]]}
[{"$f":"+'Cover Page'!$B$29","v":"Annual Performance Report 2020"},null,null,null,{"$f":"+'Cover Page'!$B$33","v":"Lincolnshire Energy from Waste Facility"}]
[]
["Monitoring of Total organic carbon emissions",null,null,"Whole Installation",null,null,"See  Notes in Cell Q3",null,null,{"$f":"+A3","v":"Monitoring of Total organic carbon emissions"},null,null,null,"Per Combustion Line",null,null,"Notes:"]
[null,null,null,null,null,null,null,null,null,null,null,null,null,null,null,null,"User to add logic to complete Whole installation, Table A5:G18. From the data in Per Combustion Line, Table J6:O79, subject to No. of lines installed"]
["mg/Nm3","1/2 Hourly Reference Periods",null,null,"Daily Reference Periods"]
[{"$f":"+'Cover Page'!C39","v":2020},"1/2 hourly TOC ELV","Monthly 1/2 hourly mean","Highest 1/2 hourly maximum","Daily TOC ELV","Monthly daily mean","Highest daily maximum",null,null,{"$f":"+A6","v":2020},"mg/Nm3","Monthly 1/2 hourly mean","Monthly 1/2 hourly maximum","Monthly daily mean","Monthly daily maximum"]
["Jan",20,{"$f":"L7","v":0.2},{"$f":"M7","v":7.7},10,{"$f":"N7","v":0.2},{"$f":"O7","v":0.5},null,null,"A1","Jan",0.2,7.7,0.2,0.5]
["Feb",20,{"$f":"L8","v":0.2},{"$f":"M8","v":6.6},10,{"$f":"N8","v":0.2},{"$f":"O8","v":0.3},null,null,null,"Feb",0.2,6.6,0.2,0.3]
["Mar",20,0.3,9,10,0.2,0.9,null,null,null,"Mar",0.3,9,0.2,0.9,null,"Whole Installation table A5:G18:"]
["Apr",20,0.1,7.1,10,0.1,0.3,null,null,null,"Apr",0.1,7.1,0.1,0.3,null,"Mean: for 1/2 hourly and daily periods calculate mean of values across all operational combustion lines for the month"]
["May",20,0.2,13.1,10,0.2,0.7,null,null,null,"May",0.2,13.1,0.2,0.7]
["Jun",20,0.1,12.5,10,0.1,0.4,null,null,null,"Jun",0.1,12.5,0.1,0.4]
["Jul",20,0.6,3.5,10,0.5,1,null,null,null,"Jul",0.6,3.5,0.5,1,null,"Maximum: for 1/2 hourly and daily periods use the highest value across all operational combustion lines for the month"]
["Aug",20,0.9,10.3,10,0.7,0.9,null,null,null,"Aug",0.9,10.3,0.7,0.9]
["Sep",20,0.7,2,10,0.6,0.7,null,null,null,"Sep",0.7,2,0.6,0.7]
["Oct",20,0.9,6.5,10,0.8,2,null,null,null,"Oct",0.9,6.5,0.8,2]
["Nov",20,0.5,11.1,10,0.3,1,null,null,null,"Nov",0.5,11.1,0.3,1]
["Dec",20,0.6,3.7,10,0.6,1.2,null,null,null,"Dec",0.6,3.7,0.6,1.2]
[null,null,null,null,null,null,null,null,null,null,"Annual",{"$f":"AVERAGE(L7:L18)","v":0.44166666666666665},{"$f":"MAX(M7:M18)","v":13.1},{"$f":"AVERAGE(N7:N18)","v":0.375},{"$f":"MAX(O7:O18)","v":2}]
[]
[null,null,null,null,null,null,null,null,null,{"$f":"+A6","v":2020},"mg/Nm3","Monthly 1/2 hourly mean","Monthly 1/2 hourly maximum","Monthly daily mean","Monthly daily maximum"]
[null,null,null,null,null,null,null,null,null,"A2","Jan"]
[null,null,null,null,null,null,null,null,null,null,"Feb"]
[null,null,null,null,null,null,null,null,null,null,"Mar"]
[null,null,null,null,null,null,null,null,null,null,"Apr"]
[null,null,null,null,null,null,null,null,null,null,"May"]
[null,null,null,null,null,null,null,null,null,null,"Jun"]
[null,null,null,null,null,null,null,null,null,null,"Jul"]
[null,null,null,null,null,null,null,null,null,null,"Aug"]
[null,null,null,null,null,null,null,null,null,null,"Sep"]
[null,null,null,null,null,null,null,null,null,null,"Oct"]
[null,null,null,null,null,null,null,null,null,null,"Nov"]
[null,null,null,null,null,null,null,null,null,null,"Dec"]
[null,null,null,null,null,null,null,null,null,null,"Annual",{"$f":"AVERAGE(L22:L33)","v":{"$error":"#DIV/0!"}},{"$f":"MAX(M22:M33)","v":0},{"$f":"AVERAGE(N22:N33)","v":{"$error":"#DIV/0!"}},{"$f":"MAX(O22:O33)","v":0}]
[]
[null,null,null,null,null,null,null,null,null,{"$f":"+A6","v":2020},"mg/Nm3","Monthly 1/2 hourly mean","Monthly 1/2 hourly maximum","Monthly daily mean","Monthly daily maximum"]
[null,null,null,null,null,null,null,null,null,"A3","Jan"]
[null,null,null,null,null,null,null,null,null,null,"Feb"]
[null,null,null,null,null,null,null,null,null,null,"Mar"]
[null,null,null,null,null,null,null,null,null,null,"Apr"]
[null,null,null,null,null,null,null,null,null,null,"May"]
[null,null,null,null,null,null,null,null,null,null,"Jun"]
[null,null,null,null,null,null,null,null,null,null,"Jul"]
[null,null,null,null,null,null,null,null,null,null,"Aug"]
[null,null,null,null,null,null,null,null,null,null,"Sep"]
[null,null,null,null,null,null,null,null,null,null,"Oct"]
[null,null,null,null,null,null,null,null,null,null,"Nov"]
["Comments :",null,null,null,null,null,null,null,null,null,"Dec"]
[null,null,null,null,null,null,null,null,null,null,"Annual",{"$f":"AVERAGE(L37:L48)","v":{"$error":"#DIV/0!"}},{"$f":"MAX(M37:M48)","v":0},{"$f":"AVERAGE(N37:N48)","v":{"$error":"#DIV/0!"}},{"$f":"MAX(O37:O48)","v":0}]
[]
[null,null,null,null,null,null,null,null,null,{"$f":"+A6","v":2020},"mg/Nm3","Monthly 1/2 hourly mean","Monthly 1/2 hourly maximum","Monthly daily mean","Monthly daily maximum"]
[null,null,null,null,null,null,null,null,null,"A4","Jan"]
[null,null,null,null,null,null,null,null,null,null,"Feb"]
[null,null,null,null,null,null,null,null,null,null,"Mar"]
[null,null,null,null,null,null,null,null,null,null,"Apr"]
[null,null,null,null,null,null,null,null,null,null,"May"]
[null,null,null,null,null,null,null,null,null,null,"Jun"]
[null,null,null,null,null,null,null,null,null,null,"Jul"]
[null,null,null,null,null,null,null,null,null,null,"Aug"]
[null,null,null,null,null,null,null,null,null,null,"Sep"]
[null,null,null,null,null,null,null,null,null,null,"Oct"]
[null,null,null,null,null,null,null,null,null,null,"Nov"]
[null,null,null,null,null,null,null,null,null,null,"Dec"]
[null,null,null,null,null,null,null,null,null,null,"Annual",{"$f":"AVERAGE(L52:L63)","v":{"$error":"#DIV/0!"}},{"$f":"MAX(M52:M63)","v":0},{"$f":"AVERAGE(N52:N63)","v":{"$error":"#DIV/0!"}},{"$f":"MAX(O52:O63)","v":0}]
[]
[null,null,null,null,null,null,null,null,null,{"$f":"+A6","v":2020},"mg/Nm3","Monthly 1/2 hourly mean","Monthly 1/2 hourly maximum","Monthly daily mean","Monthly daily maximum"]
[null,null,null,null,null,null,null,null,null,"A5","Jan"]
[null,null,null,null,null,null,null,null,null,null,"Feb"]
[null,null,null,null,null,null,null,null,null,null,"Mar"]
[null,null,null,null,null,null,null,null,null,null,"Apr"]
[null,null,null,null,null,null,null,null,null,null,"May"]
[null,null,null,null,null,null,null,null,null,null,"Jun"]
[null,null,null,null,null,null,null,null,null,null,"Jul"]
[null,null,null,null,null,null,null,null,null,null,"Aug"]
[null,null,null,null,null,null,null,null,null,null,"Sep"]
[null,null,null,null,null,null,null,null,null,null,"Oct"]
[null,null,null,null,null,null,null,null,null,null,"Nov"]
[null,null,null,null,null,null,null,null,null,null,"Dec"]
[null,null,null,null,null,null,null,null,null,null,"Annual",{"$f":"AVERAGE(L67:L78)","v":{"$error":"#DIV/0!"}},{"$f":"MAX(M67:M78)","v":0},{"$f":"AVERAGE(N67:N78)","v":{"$error":"#DIV/0!"}},{"$f":"MAX(O67:O78)","v":0}]

{"sheet":"Particulates","index":18,"n_rows":79,"n_cols":17,"rows_kept":79,"cut":false,"hidden":false,"merged":[[3,16,7,18],[9,16,11,18],[12,16,15,18],[66,9,78,9],[4,1,4,3],[4,4,4,6],[4,9,4,14],[6,9,18,9],[21,9,33,9],[36,9,48,9],[47,0,47,6],[48,0,51,6],[51,9,63,9]]}
[{"$f":"+'Cover Page'!$B$29","v":"Annual Performance Report 2020"},null,null,null,{"$f":"+'Cover Page'!$B$33","v":"Lincolnshire Energy from Waste Facility"}]
[]
["Monitoring of Particulate matter emissions",null,null,"Whole Installation",null,null,"See  Notes in Cell Q3",null,null,{"$f":"+A3","v":"Monitoring of Particulate matter emissions"},null,null,null,"Per Combustion Line",null,null,"Notes:"]
[null,null,null,null,null,null,null,null,null,null,null,null,null,null,null,null,"User to add logic to complete Whole installation, Table A5:G18. From the data in Per Combustion Line, Table J6:O79, subject to No. of lines installed"]
["mg/Nm3","1/2 Hourly Reference Periods",null,null,"Daily Reference Periods"]
[{"$f":"+'Cover Page'!C39","v":2020},"1/2 hourly PM ELV","Monthly 1/2 hourly mean","Highest 1/2 hourly maximum","Daily PM ELV","Monthly daily mean","Highest daily maximum",null,null,{"$f":"+A6","v":2020},"mg/Nm3","Monthly 1/2 hourly mean","Monthly 1/2 hourly maximum","Monthly daily mean","Monthly daily maximum"]
["Jan",30,{"$f":"L7","v":0},{"$f":"M7","v":0},10,{"$f":"N7","v":0},{"$f":"O7","v":0},null,null,"A1","Jan",0,0,0,0]
["Feb",30,{"$f":"L8","v":0},{"$f":"M8","v":0.1},10,{"$f":"N8","v":0},{"$f":"O8","v":0},null,null,null,"Feb",0,0.1,0,0]
["Mar",30,0.2,12.3,10,0.1,2.1,null,null,null,"Mar",0.2,12.3,0.1,2.1,null,"Whole Installation table A5:G18:"]
["Apr",30,0,0.5,10,0,0,null,null,null,"Apr",0,0.5,0,0,null,"Mean: for 1/2 hourly and daily periods calculate mean of values across all operational combustion lines for the month"]
["May",30,0.1,1.8,10,0.1,0.5,null,null,null,"May",0.1,1.8,0.1,0.5]
["Jun",30,0.3,1.8,10,0.3,0.5,null,null,null,"Jun",0.3,1.8,0.3,0.5]
["Jul",30,0.2,0.8,10,0.2,0.2,null,null,null,"Jul",0.2,0.8,0.2,0.2,null,"Maximum: for 1/2 hourly and daily periods use the highest value across all operational combustion lines for the month"]
["Aug",30,0.1,1.2,10,0,0.2,null,null,null,"Aug",0.1,1.2,0,0.2]
["Sep",30,0,0.9,10,0,0,null,null,null,"Sep",0,0.9,0,0]
["Oct",30,0,9.5,10,0,0.2,null,null,null,"Oct",0,9.5,0,0.2]
["Nov",30,0,0.2,10,0,0,null,null,null,"Nov",0,0.2,0,0]
["Dec",30,0,0.6,10,0,0,null,null,null,"Dec",0,0.6,0,0]
[null,null,null,null,null,null,null,null,null,null,"Annual",{"$f":"AVERAGE(L7:L18)","v":7.4999999999999997E-2},{"$f":"MAX(M7:M18)","v":12.3},{"$f":"AVERAGE(N7:N18)","v":5.8333333333333327E-2},{"$f":"MAX(O7:O18)","v":2.1}]
[]
[null,null,null,null,null,null,null,null,null,{"$f":"+A6","v":2020},"mg/Nm3","Monthly 1/2 hourly mean","Monthly 1/2 hourly maximum","Monthly daily mean","Monthly daily maximum"]
[null,null,null,null,null,null,null,null,null,"A2","Jan"]
[null,null,null,null,null,null,null,null,null,null,"Feb"]
[null,null,null,null,null,null,null,null,null,null,"Mar"]
[null,null,null,null,null,null,null,null,null,null,"Apr"]
[null,null,null,null,null,null,null,null,null,null,"May"]
[null,null,null,null,null,null,null,null,null,null,"Jun"]
[null,null,null,null,null,null,null,null,null,null,"Jul"]
[null,null,null,null,null,null,null,null,null,null,"Aug"]
[null,null,null,null,null,null,null,null,null,null,"Sep"]
[null,null,null,null,null,null,null,null,null,null,"Oct"]
[null,null,null,null,null,null,null,null,null,null,"Nov"]
[null,null,null,null,null,null,null,null,null,null,"Dec"]
[null,null,null,null,null,null,null,null,null,null,"Annual",{"$f":"AVERAGE(L22:L33)","v":{"$error":"#DIV/0!"}},{"$f":"MAX(M22:M33)","v":0},{"$f":"AVERAGE(N22:N33)","v":{"$error":"#DIV/0!"}},{"$f":"MAX(O22:O33)","v":0}]
[]
[null,null,null,null,null,null,null,null,null,{"$f":"+A6","v":2020},"mg/Nm3","Monthly 1/2 hourly mean","Monthly 1/2 hourly maximum","Monthly daily mean","Monthly daily maximum"]
[null,null,null,null,null,null,null,null,null,"A3","Jan"]
[null,null,null,null,null,null,null,null,null,null,"Feb"]
[null,null,null,null,null,null,null,null,null,null,"Mar"]
[null,null,null,null,null,null,null,null,null,null,"Apr"]
[null,null,null,null,null,null,null,null,null,null,"May"]
[null,null,null,null,null,null,null,null,null,null,"Jun"]
[null,null,null,null,null,null,null,null,null,null,"Jul"]
[null,null,null,null,null,null,null,null,null,null,"Aug"]
[null,null,null,null,null,null,null,null,null,null,"Sep"]
[null,null,null,null,null,null,null,null,null,null,"Oct"]
[null,null,null,null,null,null,null,null,null,null,"Nov"]
["Comments :",null,null,null,null,null,null,null,null,null,"Dec"]
[null,null,null,null,null,null,null,null,null,null,"Annual",{"$f":"AVERAGE(L37:L48)","v":{"$error":"#DIV/0!"}},{"$f":"MAX(M37:M48)","v":0},{"$f":"AVERAGE(N37:N48)","v":{"$error":"#DIV/0!"}},{"$f":"MAX(O37:O48)","v":0}]
[]
[null,null,null,null,null,null,null,null,null,{"$f":"+A6","v":2020},"mg/Nm3","Monthly 1/2 hourly mean","Monthly 1/2 hourly maximum","Monthly daily mean","Monthly daily maximum"]
[null,null,null,null,null,null,null,null,null,"A4","Jan"]
[null,null,null,null,null,null,null,null,null,null,"Feb"]
[null,null,null,null,null,null,null,null,null,null,"Mar"]
[null,null,null,null,null,null,null,null,null,null,"Apr"]
[null,null,null,null,null,null,null,null,null,null,"May"]
[null,null,null,null,null,null,null,null,null,null,"Jun"]
[null,null,null,null,null,null,null,null,null,null,"Jul"]
[null,null,null,null,null,null,null,null,null,null,"Aug"]
[null,null,null,null,null,null,null,null,null,null,"Sep"]
[null,null,null,null,null,null,null,null,null,null,"Oct"]
[null,null,null,null,null,null,null,null,null,null,"Nov"]
[null,null,null,null,null,null,null,null,null,null,"Dec"]
[null,null,null,null,null,null,null,null,null,null,"Annual",{"$f":"AVERAGE(L52:L63)","v":{"$error":"#DIV/0!"}},{"$f":"MAX(M52:M63)","v":0},{"$f":"AVERAGE(N52:N63)","v":{"$error":"#DIV/0!"}},{"$f":"MAX(O52:O63)","v":0}]
[]
[null,null,null,null,null,null,null,null,null,{"$f":"+A6","v":2020},"mg/Nm3","Monthly 1/2 hourly mean","Monthly 1/2 hourly maximum","Monthly daily mean","Monthly daily maximum"]
[null,null,null,null,null,null,null,null,null,"A5","Jan"]
[null,null,null,null,null,null,null,null,null,null,"Feb"]
[null,null,null,null,null,null,null,null,null,null,"Mar"]
[null,null,null,null,null,null,null,null,null,null,"Apr"]
[null,null,null,null,null,null,null,null,null,null,"May"]
[null,null,null,null,null,null,null,null,null,null,"Jun"]
[null,null,null,null,null,null,null,null,null,null,"Jul"]
[null,null,null,null,null,null,null,null,null,null,"Aug"]
[null,null,null,null,null,null,null,null,null,null,"Sep"]
[null,null,null,null,null,null,null,null,null,null,"Oct"]
[null,null,null,null,null,null,null,null,null,null,"Nov"]
[null,null,null,null,null,null,null,null,null,null,"Dec"]
[null,null,null,null,null,null,null,null,null,null,"Annual",{"$f":"AVERAGE(L67:L78)","v":{"$error":"#DIV/0!"}},{"$f":"MAX(M67:M78)","v":0},{"$f":"AVERAGE(N67:N78)","v":{"$error":"#DIV/0!"}},{"$f":"MAX(O67:O78)","v":0}]

{"sheet":"CO 95% 10 min","index":19,"n_rows":79,"n_cols":19,"rows_kept":79,"cut":false,"hidden":false,"merged":[[3,18,7,20],[9,18,11,20],[12,18,15,20],[66,10,78,10],[4,1,4,4],[4,5,4,7],[4,10,4,16],[6,10,18,10],[21,10,33,10],[36,10,48,10],[47,0,47,7],[48,0,51,7],[51,10,63,10]]}
[{"$f":"+'Cover Page'!$B$29","v":"Annual Performance Report 2020"},null,null,null,{"$f":"+'Cover Page'!$B$33","v":"Lincolnshire Energy from Waste Facility"}]
[]
["Monitoring of Carbon Monoxide (10-minute avg)",null,null,null,"Whole Installation",null,null,"See  Notes in Cell S3",null,{"$f":"+A3","v":"Monitoring of Carbon Monoxide (10-minute avg)"},null,null,null,null,"Per Combustion Line",null,"Notes:",null,"Notes:"]
[null,null,null,null,null,null,null,null,null,null,null,null,null,null,null,null,null,null,"User to add logic to complete Whole installation, Table A5:H18. From the data in Per Combustion Line, Table K6:Q79, subject to No. of lines installed"]
["mg/Nm3","10-minute Reference Periods",null,null,null,"Daily Reference Periods"]
[{"$f":"+'Cover Page'!C39","v":2020},"95%ile 10-min avg CO ELV","95%ile 10-min avg maximum","Monthly CO 10-min avg mean","10-min avg maximum","Daily CO ELV","Monthly daily mean","Highest daily maximum",null,null,{"$f":"+A6","v":2020},"mg/Nm3","95%ile 10-min avg maximum","Monthly CO 10-min avg mean","10-min avg maximum","Monthly daily mean","Monthly daily maximum"]
["Jan",150,{"$f":"M7","v":11.5},{"$f":"N7","v":3.1},877.3,50,{"$f":"P7","v":3.1},{"$f":"Q7","v":15.5},null,null,"A1","Jan",11.5,3.1,877.3,3.1,15.5]
["Feb",{"$f":"+B7","v":150},{"$f":"M8","v":57.7},3.3,702.9,{"$f":"+F7","v":50},{"$f":"P8","v":3.3},{"$f":"Q8","v":12.1},null,null,null,"Feb",57.7,3.3,702.9,3.3,12.1]
["Mar",{"$f":"+B8","v":150},6.9,2.5,1357.7,{"$f":"+F8","v":50},2.4,10.199999999999999,null,null,null,"Mar",6.9,2.5,1357.7,2.4,10.199999999999999,null,"Whole Installation table A5:H18:"]
["Apr",150,15.2,1.7,260.10000000000002,50,1.7,4.9000000000000004,null,null,null,"Apr",15.2,1.7,260.10000000000002,1.7,4.9000000000000004,null,"Mean: for 10-min and daily periods use average of all operational combustion lines."]
["May",150,4.0999999999999996,1.2,384.9,50,1.2,4.5,null,null,null,"May",4.0999999999999996,1.2,384.9,1.2,4.5]
["Jun",150,5.8,1.9,757.5,50,1.9,7.3,null,null,null,"Jun",5.8,1.9,757.5,1.9,7.3]
["Jul",150,13.5,2.2999999999999998,368.8,50,2.2000000000000002,5.2,null,null,null,"Jul",13.5,2.2999999999999998,368.8,2.2000000000000002,5.2,null,"Maximum: for 10-min and daily periods use the highest of all operational combustion lines in any month."]
["Aug",150,23.6,2.2999999999999998,232.2,50,1.9,4.5,null,null,null,"Aug",23.6,2.2999999999999998,232.2,1.9,4.5]
["Sep",150,4.2,2,244.9,50,1.9,4.5999999999999996,null,null,null,"Sep",4.2,2,244.9,1.9,4.5999999999999996]
["Oct",150,17.600000000000001,2.5,589.5,50,2.4,7.9,null,null,null,"Oct",17.600000000000001,2.5,589.5,2.4,7.9]
["Nov",150,32.799999999999997,3.2,734.6,50,3.3,14.1,null,null,null,"Nov",32.799999999999997,3.2,734.6,3.3,14.1]
["Dec",150,44.1,3.2,536.5,50,3.2,10.1,null,null,null,"Dec",44.1,3.2,536.5,3.2,10.1]
[null,null,null,null,null,null,null,null,null,null,null,"Annual",{"$f":"AVERAGE(M7:M18)","v":19.749999999999996},{"$f":"AVERAGE(N7:N18)","v":2.4333333333333331},{"$f":"MAX(O7:O18)","v":1357.7},{"$f":"AVERAGE(P7:P18)","v":2.3749999999999996},{"$f":"MAX(Q7:Q18)","v":15.5}]
[]
[null,null,null,null,null,null,null,null,null,null,{"$f":"+A6","v":2020},"mg/Nm3","95%ile 10-min avg maximum","Monthly CO 10-min avg mean","10-min avg maximum","Monthly daily mean","Monthly daily maximum"]
[null,null,null,null,null,null,null,null,null,null,"A2","Jan"]
[null,null,null,null,null,null,null,null,null,null,null,"Feb"]
[null,null,null,null,null,null,null,null,null,null,null,"Mar"]
[null,null,null,null,null,null,null,null,null,null,null,"Apr"]
[null,null,null,null,null,null,null,null,null,null,null,"May"]
[null,null,null,null,null,null,null,null,null,null,null,"Jun"]
[null,null,null,null,null,null,null,null,null,null,null,"Jul"]
[null,null,null,null,null,null,null,null,null,null,null,"Aug"]
[null,null,null,null,null,null,null,null,null,null,null,"Sep"]
[null,null,null,null,null,null,null,null,null,null,null,"Oct"]
[null,null,null,null,null,null,null,null,null,null,null,"Nov"]
[null,null,null,null,null,null,null,null,null,null,null,"Dec"]
[null,null,null,null,null,null,null,null,null,null,null,"Annual",{"$f":"AVERAGE(M22:M33)","v":{"$error":"#DIV/0!"}},null,{"$f":"MAX(O22:O33)","v":0},{"$f":"AVERAGE(P22:P33)","v":{"$error":"#DIV/0!"}},{"$f":"MAX(Q22:Q33)","v":0}]
[]
[null,null,null,null,null,null,null,null,null,null,{"$f":"+A6","v":2020},"mg/Nm3","95%ile 10-min avg maximum","Monthly CO 10-min avg mean","10-min avg maximum","Monthly daily mean","Monthly daily maximum"]
[null,null,null,null,null,null,null,null,null,null,"A3","Jan"]
[null,null,null,null,null,null,null,null,null,null,null,"Feb"]
[null,null,null,null,null,null,null,null,null,null,null,"Mar"]
[null,null,null,null,null,null,null,null,null,null,null,"Apr"]
[null,null,null,null,null,null,null,null,null,null,null,"May"]
[null,null,null,null,null,null,null,null,null,null,null,"Jun"]
[null,null,null,null,null,null,null,null,null,null,null,"Jul"]
[null,null,null,null,null,null,null,null,null,null,null,"Aug"]
[null,null,null,null,null,null,null,null,null,null,null,"Sep"]
[null,null,null,null,null,null,null,null,null,null,null,"Oct"]
[null,null,null,null,null,null,null,null,null,null,null,"Nov"]
["Comments :",null,null,null,null,null,null,null,null,null,null,"Dec"]
["Environment Agency explanatory note: The 10-minute average ELV is based on the “95th percentile”. In this case this means that 95% of the 10 minute averages in the relevant 24-hour period (i.e. 137) must be below 150 mg/Nm3, and 5% (i.e. 7) are allowed to be any value above 150 mg/Nm3. Whilst we expect operators to minimise CO emissions at all times, it is perfectly acceptable for the value of the maximum 10-minute average to be above 150 mg/Nm3, provided the 95th percentile ELV has been met for that period. ",null,null,null,null,null,null,null,null,null,null,"Annual",{"$f":"AVERAGE(M37:M48)","v":{"$error":"#DIV/0!"}},null,{"$f":"MAX(O37:O48)","v":0},{"$f":"AVERAGE(P37:P48)","v":{"$error":"#DIV/0!"}},{"$f":"MAX(Q37:Q48)","v":0}]
[]
[null,null,null,null,null,null,null,null,null,null,{"$f":"+A6","v":2020},"mg/Nm3","95%ile 10-min avg maximum","Monthly CO 10-min avg mean","10-min avg maximum","Monthly daily mean","Monthly daily maximum"]
[null,null,null,null,null,null,null,null,null,null,"A4","Jan"]
[null,null,null,null,null,null,null,null,null,null,null,"Feb"]
[null,null,null,null,null,null,null,null,null,null,null,"Mar"]
[null,null,null,null,null,null,null,null,null,null,null,"Apr"]
[null,null,null,null,null,null,null,null,null,null,null,"May"]
[null,null,null,null,null,null,null,null,null,null,null,"Jun"]
[null,null,null,null,null,null,null,null,null,null,null,"Jul"]
[null,null,null,null,null,null,null,null,null,null,null,"Aug"]
[null,null,null,null,null,null,null,null,null,null,null,"Sep"]
[null,null,null,null,null,null,null,null,null,null,null,"Oct"]
[null,null,null,null,null,null,null,null,null,null,null,"Nov"]
[null,null,null,null,null,null,null,null,null,null,null,"Dec"]
[null,null,null,null,null,null,null,null,null,null,null,"Annual",{"$f":"AVERAGE(M52:M63)","v":{"$error":"#DIV/0!"}},null,{"$f":"MAX(O52:O63)","v":0},{"$f":"AVERAGE(P52:P63)","v":{"$error":"#DIV/0!"}},{"$f":"MAX(Q52:Q63)","v":0}]
[]
[null,null,null,null,null,null,null,null,null,null,{"$f":"+A6","v":2020},"mg/Nm3","95%ile 10-min avg maximum","Monthly CO 10-min avg mean","10-min avg maximum","Monthly daily mean","Monthly daily maximum"]
[null,null,null,null,null,null,null,null,null,null,"A5","Jan"]
[null,null,null,null,null,null,null,null,null,null,null,"Feb"]
[null,null,null,null,null,null,null,null,null,null,null,"Mar"]
[null,null,null,null,null,null,null,null,null,null,null,"Apr"]
[null,null,null,null,null,null,null,null,null,null,null,"May"]
[null,null,null,null,null,null,null,null,null,null,null,"Jun"]
[null,null,null,null,null,null,null,null,null,null,null,"Jul"]
[null,null,null,null,null,null,null,null,null,null,null,"Aug"]
[null,null,null,null,null,null,null,null,null,null,null,"Sep"]
[null,null,null,null,null,null,null,null,null,null,null,"Oct"]
[null,null,null,null,null,null,null,null,null,null,null,"Nov"]
[null,null,null,null,null,null,null,null,null,null,null,"Dec"]
[null,null,null,null,null,null,null,null,null,null,null,"Annual",{"$f":"AVERAGE(M67:M78)","v":{"$error":"#DIV/0!"}},null,{"$f":"MAX(O67:O78)","v":0},{"$f":"AVERAGE(P67:P78)","v":{"$error":"#DIV/0!"}},{"$f":"MAX(Q67:Q78)","v":0}]

{"sheet":"NH3","index":20,"n_rows":79,"n_cols":17,"rows_kept":79,"cut":false,"hidden":false,"merged":[[3,16,7,18],[9,16,11,18],[12,16,15,18],[66,9,78,9],[4,1,4,3],[4,4,4,6],[4,9,4,14],[6,9,18,9],[21,9,33,9],[36,9,48,9],[47,0,47,6],[48,0,51,6],[51,9,63,9]]}
[{"$f":"+'Cover Page'!$B$29","v":"Annual Performance Report 2020"},null,null,null,{"$f":"+'Cover Page'!$B$33","v":"Lincolnshire Energy from Waste Facility"}]
[]
["Monitoring of Ammnonia emissions ",null,null,"Whole Installation",null,null,"See  Notes in Cell Q3",null,null,{"$f":"+A3","v":"Monitoring of Ammnonia emissions "},null,null,null,"Per Combustion Line",null,null,"Notes:"]
[null,null,null,null,null,null,null,null,null,null,null,null,null,null,null,null,"User to add logic to complete Whole installation, Table A5:G18. From the data in Per Combustion Line, Table J6:O79, subject to No. of lines installed"]
["mg/Nm3","1/2 Hourly Reference Periods",null,null,"Daily Reference Periods"]
[{"$f":"+'Cover Page'!C39","v":2020},"1/2 hourly NH3 ELV","Monthly 1/2 hourly mean","Highest 1/2 hourly maximum","Daily NH3 ELV","Monthly daily mean","Highest daily maximum",null,null,{"$f":"+A6","v":2020},"mg/Nm3","Monthly 1/2 hourly mean","Monthly 1/2 hourly maximum","Monthly daily mean","Monthly daily maximum"]
["Jan","N/A",{"$f":"L7","v":1},{"$f":"M7","v":1.8},"N/A",{"$f":"N7","v":1},{"$f":"O7","v":1.3},null,null,"A1","Jan",1,1.8,1,1.3]
["Feb",{"$f":"+B7","v":"N/A"},{"$f":"L8","v":1.1000000000000001},{"$f":"M8","v":2.4},"N/A",{"$f":"N8","v":1.1000000000000001},{"$f":"O8","v":1.3},null,null,null,"Feb",1.1000000000000001,2.4,1.1000000000000001,1.3]
["Mar",{"$f":"+B8","v":"N/A"},1.3,5.7,"N/A",1.2,1.9,null,null,null,"Mar",1.3,5.7,1.2,1.9,null,"Whole Installation table A5:G18:"]
["Apr","N/A",1.3,3.1,"N/A",1.2,1.6,null,null,null,"Apr",1.3,3.1,1.2,1.6,null,"Mean: for 1/2 hourly and daily periods calculate mean of values across all operational combustion lines for the month"]
["May","N/A",1.4,4.0999999999999996,"N/A",1.4,2,null,null,null,"May",1.4,4.0999999999999996,1.4,2]
["Jun","N/A",1.5,2.8,"N/A",1.4,1.8,null,null,null,"Jun",1.5,2.8,1.4,1.8]
["Jul","N/A",1.7,10,"N/A",1.7,2.5,null,null,null,"Jul",1.7,10,1.7,2.5,null,"Maximum: for 1/2 hourly and daily periods use the highest value across all operational combustion lines for the month"]
["Aug","N/A",1.9,7.4,"N/A",1.8,2.4,null,null,null,"Aug",1.9,7.4,1.8,2.4]
["Sep","N/A",1.4,3.7,"N/A",1.3,1.9,null,null,null,"Sep",1.4,3.7,1.3,1.9]
["Oct","N/A",1.2,5.9,"N/A",1.1000000000000001,1.7,null,null,null,"Oct",1.2,5.9,1.1000000000000001,1.7]
["Nov","N/A",1.3,4.0999999999999996,"N/A",1.3,2.1,null,null,null,"Nov",1.3,4.0999999999999996,1.3,2.1]
["Dec","N/A",1,2.6,"N/A",1,1.3,null,null,null,"Dec",1,2.6,1,1.3]
[null,null,null,null,null,null,null,null,null,null,"Annual",{"$f":"AVERAGE(L7:L18)","v":1.3416666666666668},{"$f":"MAX(M7:M18)","v":10},{"$f":"AVERAGE(N7:N18)","v":1.2916666666666667},{"$f":"MAX(O7:O18)","v":2.5}]
[]
[null,null,null,null,null,null,null,null,null,{"$f":"+A6","v":2020},"mg/Nm3","Monthly 1/2 hourly mean","Monthly 1/2 hourly maximum","Monthly daily mean","Monthly daily maximum"]
[null,null,null,null,null,null,null,null,null,"A2","Jan"]
[null,null,null,null,null,null,null,null,null,null,"Feb"]
[null,null,null,null,null,null,null,null,null,null,"Mar"]
[null,null,null,null,null,null,null,null,null,null,"Apr"]
[null,null,null,null,null,null,null,null,null,null,"May"]
[null,null,null,null,null,null,null,null,null,null,"Jun"]
[null,null,null,null,null,null,null,null,null,null,"Jul"]
[null,null,null,null,null,null,null,null,null,null,"Aug"]
[null,null,null,null,null,null,null,null,null,null,"Sep"]
[null,null,null,null,null,null,null,null,null,null,"Oct"]
[null,null,null,null,null,null,null,null,null,null,"Nov"]
[null,null,null,null,null,null,null,null,null,null,"Dec"]
[null,null,null,null,null,null,null,null,null,null,"Annual",{"$f":"AVERAGE(L22:L33)","v":{"$error":"#DIV/0!"}},{"$f":"MAX(M22:M33)","v":0},{"$f":"AVERAGE(N22:N33)","v":{"$error":"#DIV/0!"}},{"$f":"MAX(O22:O33)","v":0}]
[]
[null,null,null,null,null,null,null,null,null,{"$f":"+A6","v":2020},"mg/Nm3","Monthly 1/2 hourly mean","Monthly 1/2 hourly maximum","Monthly daily mean","Monthly daily maximum"]
[null,null,null,null,null,null,null,null,null,"A3","Jan"]
[null,null,null,null,null,null,null,null,null,null,"Feb"]
[null,null,null,null,null,null,null,null,null,null,"Mar"]
[null,null,null,null,null,null,null,null,null,null,"Apr"]
[null,null,null,null,null,null,null,null,null,null,"May"]
[null,null,null,null,null,null,null,null,null,null,"Jun"]
[null,null,null,null,null,null,null,null,null,null,"Jul"]
[null,null,null,null,null,null,null,null,null,null,"Aug"]
[null,null,null,null,null,null,null,null,null,null,"Sep"]
[null,null,null,null,null,null,null,null,null,null,"Oct"]
[null,null,null,null,null,null,null,null,null,null,"Nov"]
["Comments :",null,null,null,null,null,null,null,null,null,"Dec"]
["An indicated ELV value of zero in the table above means that no ammonia limit is set in the permit.  ",null,null,null,null,null,null,null,null,null,"Annual",{"$f":"AVERAGE(L37:L48)","v":{"$error":"#DIV/0!"}},{"$f":"MAX(M37:M48)","v":0},{"$f":"AVERAGE(N37:N48)","v":{"$error":"#DIV/0!"}},{"$f":"MAX(O37:O48)","v":0}]
[]
[null,null,null,null,null,null,null,null,null,{"$f":"+A6","v":2020},"mg/Nm3","Monthly 1/2 hourly mean","Monthly 1/2 hourly maximum","Monthly daily mean","Monthly daily maximum"]
[null,null,null,null,null,null,null,null,null,"A4","Jan"]
[null,null,null,null,null,null,null,null,null,null,"Feb"]
[null,null,null,null,null,null,null,null,null,null,"Mar"]
[null,null,null,null,null,null,null,null,null,null,"Apr"]
[null,null,null,null,null,null,null,null,null,null,"May"]
[null,null,null,null,null,null,null,null,null,null,"Jun"]
[null,null,null,null,null,null,null,null,null,null,"Jul"]
[null,null,null,null,null,null,null,null,null,null,"Aug"]
[null,null,null,null,null,null,null,null,null,null,"Sep"]
[null,null,null,null,null,null,null,null,null,null,"Oct"]
[null,null,null,null,null,null,null,null,null,null,"Nov"]
[null,null,null,null,null,null,null,null,null,null,"Dec"]
[null,null,null,null,null,null,null,null,null,null,"Annual",{"$f":"AVERAGE(L52:L63)","v":{"$error":"#DIV/0!"}},{"$f":"MAX(M52:M63)","v":0},{"$f":"AVERAGE(N52:N63)","v":{"$error":"#DIV/0!"}},{"$f":"MAX(O52:O63)","v":0}]
[]
[null,null,null,null,null,null,null,null,null,{"$f":"+A6","v":2020},"mg/Nm3","Monthly 1/2 hourly mean","Monthly 1/2 hourly maximum","Monthly daily mean","Monthly daily maximum"]
[null,null,null,null,null,null,null,null,null,"A5","Jan"]
[null,null,null,null,null,null,null,null,null,null,"Feb"]
[null,null,null,null,null,null,null,null,null,null,"Mar"]
[null,null,null,null,null,null,null,null,null,null,"Apr"]
[null,null,null,null,null,null,null,null,null,null,"May"]
[null,null,null,null,null,null,null,null,null,null,"Jun"]
[null,null,null,null,null,null,null,null,null,null,"Jul"]
[null,null,null,null,null,null,null,null,null,null,"Aug"]
[null,null,null,null,null,null,null,null,null,null,"Sep"]
[null,null,null,null,null,null,null,null,null,null,"Oct"]
[null,null,null,null,null,null,null,null,null,null,"Nov"]
[null,null,null,null,null,null,null,null,null,null,"Dec"]
[null,null,null,null,null,null,null,null,null,null,"Annual",{"$f":"AVERAGE(L67:L78)","v":{"$error":"#DIV/0!"}},{"$f":"MAX(M67:M78)","v":0},{"$f":"AVERAGE(N67:N78)","v":{"$error":"#DIV/0!"}},{"$f":"MAX(O67:O78)","v":0}]